Workbook

Sheet Simulador (hidden)
B4: Input | E4: Output
B5: PRODUCTO | C5: Prestamo Personal | I5: 51.03% TCEA máxima calculada considerando un monto de S/5000.00 a un plazo de 12 meses y cuotas mensuales de hasta S/517.29. Total de interés mínimo S/1,177.36 calculado considerando el rango de tasas de interés aplicable, conforme al tarifario vigente.
B6: TIPO DE SEGURO | C6: 3. Seguro de Desgravamen con Devolución
B7: PLAZO (MESES) | C7: 12 | E7: SEGURO DE DESGRAVAMEN
B8: MONTO OFERTA | C8: 10000 | E8: CUOTA*(S/)
B10: FECHA DE DESEMBOLSO | C10: 2024-10-24
B11: FECHA DE PAGO | C11: 24
B12: PERIODO DE GRACIA | C12: 0
B13: TEA | C13: 0.15
B15: SEGURO | C15: =+IF(C6="1. Sin Seguro de Desgravamen",0,IF(C6="2. Seguro de Desgravamen Tradicional",0.075%,0.085%)) -> 0.00085 | F15: =+EOMONTH(C10,0) -> 2024-10-31 | G15: =+EOMONTH(C10,0)+C11 -> 2024-11-24
B16: TED | C16: =+(1+C13)^(1/360)-1 -> 0.0003883029878 | G16: =+G15-F15 -> 24
E19: N° | F19: Fecha de Vencimiento | H19: N° días | I19: Capital | K19: Seguro de Desgravamen | M19: Amortización | O19: Interés | Q19: Cuota
E20: 1
E21: =+E20+1 -> 2
E22: 3
E23: 4
G24: =+EOMONTH(C10,0)+C11 -> 2024-11-24
E25: N° | F25: inicio | G25: fin | H25: N° Días | I25: Capital | J25: Seguro | K25: PP | L25: EECC | M25: Amortización | N25: Interés | O25: Cuota
E26: 1 | F26: =+C10 -> 2024-10-24 | G26: =+IF((EOMONTH(C10,0)+C11)-C10<30,EOMONTH(C10,1)+C11,EOMONTH(C10,0)+C11) -> 2024-11-24 | H26: =IFERROR(G26-F26,"") -> 31 | I26: =+C8 -> 10000 | J26: =+I26*C15 -> 8.5 | K26: =IF(E26<=$G$30,IF($G$8="Préstamo Efectivo",5,IF($G$8="Préstamo Senior",0,IF($G$8="Consolidación de Deuda",0))),"") ->  | M26: =IF(E26<=$G$30,O26-N26-SUM(J26:L26),"") ->  | N26: =IF(E26<=$G$30,I26*((1+$AB$2)^H26-1),"") ->  | O26: =IF(E26<=$G$30,$AN$5+SUM(J26:L26),"") -> 
F27: =IF(E27<=$C$7,G26,"") -> 2024-11-24

Sheet SIMULADOR_
E3: SIMULADOR DE PRÉSTAMOS PERSONALES INTERBANK
C7: DATOS DE SOLICITUD | K7: DEL PRÉSTAMO
E9: MONEDA | G9: SOLES | M9: MONTO A FINANCIAR | O9: =+G52 -> 12910.1
E11: FECHA DE DESEMBOLSO | G11: 2024-10-23 | M11: TCEA | O11: =+'Simulador DATOS'!$C$10 -> 0.3872105399
E13: MONTO A DESEMBOLSAR | G13: 12222 | M13: CUOTA | O13: =+MIN(O52:P53) -> 443.25
E15: PLAZO | G15: 60 | M15: PRIMERA FECHA DE PAGO | O15: =+F52 -> 2024-12-02
E17: TEA (1) | G17: 0.365 | M17: TOTAL AMORTIZACIÓN | O17: =+SUM('Simulador DATOS'!O8:O128) -> 12799
E19: FECHA DE PAGO | G19: 2 | M19: TOTAL INTERESES | O19: =+SUM('Simulador DATOS'!P8:P128) -> 13195.76
E21: TIPO DE CUOTA | G21: ORDINARIA | M21: TOTAL DESGRAVAMEN | O21: =+SUM('Simulador DATOS'!Q8:Q128) -> 0
E23: PERIODO DE GRACIA (MESES) | G23: 0 | M23: TOTAL COMISIONES | O23: =+SUM('Simulador DATOS'!S8:S128) -> 600
I24: =+IF((G13>300000)*(G9="DÓLARES")*(G25<>"SIN SEGURO (ENDOSO)"),"Corregir conforme a (3)","") -> 
E25: TIPO DE SEGURO DE DESG (2) (3) (4) | G25: SIN SEGURO (ENDOSO) | I25: =+IF((G15<24)*(G25="CON DEVOLUC."),"Corregir conforme a (4)","") -> 
E27: PRIMA DE SEGURO DESG. | G27: =+IF(G25="SIN DEVOLUC.",0.075%,IF(G25="CON DEVOLUC.",0.0854%,0)) -> 0 | K27: LEYENDA:
E29: SEGURO DE PROTEC. CRÉDITOS (5) (7) | G29: SÍ | M29: Dato a ingresar y/o elegir de lista desplegable
E31: PRIMA DE SEGURO DE PROTEC. CRÉD. | G31: =IF(AND(G29="SÍ", G9="SOLES"),IFERROR(VLOOKUP((G15+G23),LEYENDA!G5:H66,2,FALSE),0),IF(AND(G29="SÍ", G9="DÓLARES"),IFERROR(VLOOKUP((G15+G23),LEYENDA!G5:J66,4,FALSE),0),0)) -> 577 | M31: Dato formulado, no modificar
E33: TIPO DE ENVÍO DE EECC (6) | G33: FÍSICO - SIN PLANILLA
E35: COMISIÓN POR ENVÍO DE EECC (6) | G35: =+VLOOKUP(G9&G33, LEYENDA!P6:S11,4,0) -> 10
D38: NOTA:
D39: (1) | E39: La TEA es fija durante todo el crédito. Consulta tu tasa aplicable ingresando a Interbank.pe, por nuestra App, visitando nuestras Tiendas o llamando al (01)3119000
D41: (2) | E41: Se calcula sobre el saldo de capital del crédito. El cliente puede elegir contratar el seguro de desgravamen tradicional sin devolución o seguro de desgravamen con devolución. Consultar condiciones y requisitos en www.Interbank.pe
D43: (3) | E43: El cliente no tiene la obligación de tomar el seguro de Interbank, puede endosar el suyo (ya existente) a favor de Interbank y/o uno similar provisto por otra compañía. Para financiamientos mayores a USD $300,000 solo se podrá desembolsar con un seguro endosado.
D45: (4) | E45: El seguro de desgravamen con devolución aplica únicamente para financiamientos con plazos de 24 meses o más.
D46: (5) | E46: Este seguro es a solicitud del cliente. El importe de la prima será incluida en el capital y financiada según las condiciones del crédito.
D47: (6) | E47: La comisión por envío de Estado de Cuenta varía según la moneda y si tiene Cuenta Sueldo con Interbank: en soles, S/4 con planilla y S/10 sin planilla; en dólares, USD $1.5 con planilla y USD $3.5 sin planilla.
D49: (7) | E49: Plazo máximo de 60 meses.
D51: CUOTA | F51: VENCIMIENTO | G51: SALDO CAPITAL | H51: AMORTIZACIÓN | J51: INTERÉS | L51: DESGRAVAMEN | N51: COMISIÓN | O51: CUOTA
D52: 1 | F52: =+IFERROR(VLOOKUP(D52, 'Simulador DATOS'!F:R,6,0),"") -> 2024-12-02 | G52: =+IFERROR(VLOOKUP(D52, 'Simulador DATOS'!F:R,9,0),"") -> 12910.1 | H52: =+IFERROR(VLOOKUP(D52, 'Simulador DATOS'!F:R,10,0),"") -> 94.12 | J52: =+IFERROR(VLOOKUP(D52, 'Simulador DATOS'!F:R,11,0),"") -> 339.13 | L52: =+IFERROR(VLOOKUP(D52, 'Simulador DATOS'!F:R,12,0),"") -> 0 | N52: =+IFERROR(VLOOKUP(D52, 'Simulador DATOS'!F:S,14,0),"") -> 10 | O52: =+IFERROR(VLOOKUP(D52, 'Simulador DATOS'!F:T,15,0),"") -> 443.25
D53: =+IF(D52="", "", IF((D52+1)>$G$15,"", D52+1)) -> 2 | F53: =+IFERROR(VLOOKUP(D53, 'Simulador DATOS'!F:R,6,0),"") -> 2025-01-02 | G53: =+IFERROR(VLOOKUP(D53, 'Simulador DATOS'!F:R,9,0),"") -> 12815.98 | H53: =+IFERROR(VLOOKUP(D53, 'Simulador DATOS'!F:R,10,0),"") -> 85.22 | J53: =+IFERROR(VLOOKUP(D53, 'Simulador DATOS'!F:R,11,0),"") -> 348.03 | L53: =+IFERROR(VLOOKUP(D53, 'Simulador DATOS'!F:R,12,0),"") -> 0 | N53: =+IFERROR(VLOOKUP(D53, 'Simulador DATOS'!F:S,14,0),"") -> 10 | O53: =+IFERROR(VLOOKUP(D53, 'Simulador DATOS'!F:T,15,0),"") -> 443.25
D54: 3 | F54: =+IFERROR(VLOOKUP(D54, 'Simulador DATOS'!F:R,6,0),"") -> 2025-02-02 | G54: =+IFERROR(VLOOKUP(D54, 'Simulador DATOS'!F:R,9,0),"") -> 12730.76 | H54: =+IFERROR(VLOOKUP(D54, 'Simulador DATOS'!F:R,10,0),"") -> 87.53 | J54: =+IFERROR(VLOOKUP(D54, 'Simulador DATOS'!F:R,11,0),"") -> 345.72 | L54: =+IFERROR(VLOOKUP(D54, 'Simulador DATOS'!F:R,12,0),"") -> 0 | N54: =+IFERROR(VLOOKUP(D54, 'Simulador DATOS'!F:S,14,0),"") -> 10 | O54: =+IFERROR(VLOOKUP(D54, 'Simulador DATOS'!F:T,15,0),"") -> 443.25
D55: 4 | F55: =+IFERROR(VLOOKUP(D55, 'Simulador DATOS'!F:R,6,0),"") -> 2025-03-02 | G55: =+IFERROR(VLOOKUP(D55, 'Simulador DATOS'!F:R,9,0),"") -> 12643.23 | H55: =+IFERROR(VLOOKUP(D55, 'Simulador DATOS'!F:R,10,0),"") -> 123.54 | J55: =+IFERROR(VLOOKUP(D55, 'Simulador DATOS'!F:R,11,0),"") -> 309.71 | L55: =+IFERROR(VLOOKUP(D55, 'Simulador DATOS'!F:R,12,0),"") -> 0 | N55: =+IFERROR(VLOOKUP(D55, 'Simulador DATOS'!F:S,14,0),"") -> 10 | O55: =+IFERROR(VLOOKUP(D55, 'Simulador DATOS'!F:T,15,0),"") -> 443.25
D56: 5 | F56: =+IFERROR(VLOOKUP(D56, 'Simulador DATOS'!F:R,6,0),"") -> 2025-04-02 | G56: =+IFERROR(VLOOKUP(D56, 'Simulador DATOS'!F:R,9,0),"") -> 12519.69 | H56: =+IFERROR(VLOOKUP(D56, 'Simulador DATOS'!F:R,10,0),"") -> 93.26 | J56: =+IFERROR(VLOOKUP(D56, 'Simulador DATOS'!F:R,11,0),"") -> 339.99 | L56: =+IFERROR(VLOOKUP(D56, 'Simulador DATOS'!F:R,12,0),"") -> 0 | N56: =+IFERROR(VLOOKUP(D56, 'Simulador DATOS'!F:S,14,0),"") -> 10 | O56: =+IFERROR(VLOOKUP(D56, 'Simulador DATOS'!F:T,15,0),"") -> 443.25
D57: 6 | F57: =+IFERROR(VLOOKUP(D57, 'Simulador DATOS'!F:R,6,0),"") -> 2025-05-02 | G57: =+IFERROR(VLOOKUP(D57, 'Simulador DATOS'!F:R,9,0),"") -> 12426.43 | H57: =+IFERROR(VLOOKUP(D57, 'Simulador DATOS'!F:R,10,0),"") -> 106.82 | J57: =+IFERROR(VLOOKUP(D57, 'Simulador DATOS'!F:R,11,0),"") -> 326.43 | L57: =+IFERROR(VLOOKUP(D57, 'Simulador DATOS'!F:R,12,0),"") -> 0 | N57: =+IFERROR(VLOOKUP(D57, 'Simulador DATOS'!F:S,14,0),"") -> 10 | O57: =+IFERROR(VLOOKUP(D57, 'Simulador DATOS'!F:T,15,0),"") -> 443.25
D58: 7 | F58: =+IFERROR(VLOOKUP(D58, 'Simulador DATOS'!F:R,6,0),"") -> 2025-06-02 | G58: =+IFERROR(VLOOKUP(D58, 'Simulador DATOS'!F:R,9,0),"") -> 12319.61 | H58: =+IFERROR(VLOOKUP(D58, 'Simulador DATOS'!F:R,10,0),"") -> 98.7 | J58: =+IFERROR(VLOOKUP(D58, 'Simulador DATOS'!F:R,11,0),"") -> 334.55 | L58: =+IFERROR(VLOOKUP(D58, 'Simulador DATOS'!F:R,12,0),"") -> 0 | N58: =+IFERROR(VLOOKUP(D58, 'Simulador DATOS'!F:S,14,0),"") -> 10 | O58: =+IFERROR(VLOOKUP(D58, 'Simulador DATOS'!F:T,15,0),"") -> 443.25
D59: 8 | F59: =+IFERROR(VLOOKUP(D59, 'Simulador DATOS'!F:R,6,0),"") -> 2025-07-02 | G59: =+IFERROR(VLOOKUP(D59, 'Simulador DATOS'!F:R,9,0),"") -> 12220.91 | H59: =+IFERROR(VLOOKUP(D59, 'Simulador DATOS'!F:R,10,0),"") -> 112.22 | J59: =+IFERROR(VLOOKUP(D59, 'Simulador DATOS'!F:R,11,0),"") -> 321.03 | L59: =+IFERROR(VLOOKUP(D59, 'Simulador DATOS'!F:R,12,0),"") -> 0 | N59: =+IFERROR(VLOOKUP(D59, 'Simulador DATOS'!F:S,14,0),"") -> 10 | O59: =+IFERROR(VLOOKUP(D59, 'Simulador DATOS'!F:T,15,0),"") -> 443.25
D60: 9 | F60: =+IFERROR(VLOOKUP(D60, 'Simulador DATOS'!F:R,6,0),"") -> 2025-08-02 | G60: =+IFERROR(VLOOKUP(D60, 'Simulador DATOS'!F:R,9,0),"") -> 12108.69 | H60: =+IFERROR(VLOOKUP(D60, 'Simulador DATOS'!F:R,10,0),"") -> 104.43 | J60: =+IFERROR(VLOOKUP(D60, 'Simulador DATOS'!F:R,11,0),"") -> 328.82 | L60: =+IFERROR(VLOOKUP(D60, 'Simulador DATOS'!F:R,12,0),"") -> 0 | N60: =+IFERROR(VLOOKUP(D60, 'Simulador DATOS'!F:S,14,0),"") -> 10 | O60: =+IFERROR(VLOOKUP(D60, 'Simulador DATOS'!F:T,15,0),"") -> 443.25
D61: 10 | F61: =+IFERROR(VLOOKUP(D61, 'Simulador DATOS'!F:R,6,0),"") -> 2025-09-02 | G61: =+IFERROR(VLOOKUP(D61, 'Simulador DATOS'!F:R,9,0),"") -> 12004.26 | H61: =+IFERROR(VLOOKUP(D61, 'Simulador DATOS'!F:R,10,0),"") -> 107.26 | J61: =+IFERROR(VLOOKUP(D61, 'Simulador DATOS'!F:R,11,0),"") -> 325.99 | L61: =+IFERROR(VLOOKUP(D61, 'Simulador DATOS'!F:R,12,0),"") -> 0 | N61: =+IFERROR(VLOOKUP(D61, 'Simulador DATOS'!F:S,14,0),"") -> 10 | O61: =+IFERROR(VLOOKUP(D61, 'Simulador DATOS'!F:T,15,0),"") -> 443.25
D62: 11 | F62: =+IFERROR(VLOOKUP(D62, 'Simulador DATOS'!F:R,6,0),"") -> 2025-10-02 | G62: =+IFERROR(VLOOKUP(D62, 'Simulador DATOS'!F:R,9,0),"") -> 11897 | H62: =+IFERROR(VLOOKUP(D62, 'Simulador DATOS'!F:R,10,0),"") -> 120.73 | J62: =+IFERROR(VLOOKUP(D62, 'Simulador DATOS'!F:R,11,0),"") -> 312.52 | L62: =+IFERROR(VLOOKUP(D62, 'Simulador DATOS'!F:R,12,0),"") -> 0 | N62: =+IFERROR(VLOOKUP(D62, 'Simulador DATOS'!F:S,14,0),"") -> 10 | O62: =+IFERROR(VLOOKUP(D62, 'Simulador DATOS'!F:T,15,0),"") -> 443.25
D63: 12 | F63: =+IFERROR(VLOOKUP(D63, 'Simulador DATOS'!F:R,6,0),"") -> 2025-11-02 | G63: =+IFERROR(VLOOKUP(D63, 'Simulador DATOS'!F:R,9,0),"") -> 11776.27 | H63: =+IFERROR(VLOOKUP(D63, 'Simulador DATOS'!F:R,10,0),"") -> 113.45 | J63: =+IFERROR(VLOOKUP(D63, 'Simulador DATOS'!F:R,11,0),"") -> 319.8 | L63: =+IFERROR(VLOOKUP(D63, 'Simulador DATOS'!F:R,12,0),"") -> 0 | N63: =+IFERROR(VLOOKUP(D63, 'Simulador DATOS'!F:S,14,0),"") -> 10 | O63: =+IFERROR(VLOOKUP(D63, 'Simulador DATOS'!F:T,15,0),"") -> 443.25
D64: 13 | F64: =+IFERROR(VLOOKUP(D64, 'Simulador DATOS'!F:R,6,0),"") -> 2025-12-02 | G64: =+IFERROR(VLOOKUP(D64, 'Simulador DATOS'!F:R,9,0),"") -> 11662.82 | H64: =+IFERROR(VLOOKUP(D64, 'Simulador DATOS'!F:R,10,0),"") -> 126.88 | J64: =+IFERROR(VLOOKUP(D64, 'Simulador DATOS'!F:R,11,0),"") -> 306.37 | L64: =+IFERROR(VLOOKUP(D64, 'Simulador DATOS'!F:R,12,0),"") -> 0 | N64: =+IFERROR(VLOOKUP(D64, 'Simulador DATOS'!F:S,14,0),"") -> 10 | O64: =+IFERROR(VLOOKUP(D64, 'Simulador DATOS'!F:T,15,0),"") -> 443.25
D65: 14 | F65: =+IFERROR(VLOOKUP(D65, 'Simulador DATOS'!F:R,6,0),"") -> 2026-01-02 | G65: =+IFERROR(VLOOKUP(D65, 'Simulador DATOS'!F:R,9,0),"") -> 11535.94 | H65: =+IFERROR(VLOOKUP(D65, 'Simulador DATOS'!F:R,10,0),"") -> 119.98 | J65: =+IFERROR(VLOOKUP(D65, 'Simulador DATOS'!F:R,11,0),"") -> 313.27 | L65: =+IFERROR(VLOOKUP(D65, 'Simulador DATOS'!F:R,12,0),"") -> 0 | N65: =+IFERROR(VLOOKUP(D65, 'Simulador DATOS'!F:S,14,0),"") -> 10 | O65: =+IFERROR(VLOOKUP(D65, 'Simulador DATOS'!F:T,15,0),"") -> 443.25
D66: 15 | F66: =+IFERROR(VLOOKUP(D66, 'Simulador DATOS'!F:R,6,0),"") -> 2026-02-02 | G66: =+IFERROR(VLOOKUP(D66, 'Simulador DATOS'!F:R,9,0),"") -> 11415.96 | H66: =+IFERROR(VLOOKUP(D66, 'Simulador DATOS'!F:R,10,0),"") -> 123.24 | J66: =+IFERROR(VLOOKUP(D66, 'Simulador DATOS'!F:R,11,0),"") -> 310.01 | L66: =+IFERROR(VLOOKUP(D66, 'Simulador DATOS'!F:R,12,0),"") -> 0 | N66: =+IFERROR(VLOOKUP(D66, 'Simulador DATOS'!F:S,14,0),"") -> 10 | O66: =+IFERROR(VLOOKUP(D66, 'Simulador DATOS'!F:T,15,0),"") -> 443.25
D67: 16 | F67: =+IFERROR(VLOOKUP(D67, 'Simulador DATOS'!F:R,6,0),"") -> 2026-03-02 | G67: =+IFERROR(VLOOKUP(D67, 'Simulador DATOS'!F:R,9,0),"") -> 11292.72 | H67: =+IFERROR(VLOOKUP(D67, 'Simulador DATOS'!F:R,10,0),"") -> 156.62 | J67: =+IFERROR(VLOOKUP(D67, 'Simulador DATOS'!F:R,11,0),"") -> 276.63 | L67: =+IFERROR(VLOOKUP(D67, 'Simulador DATOS'!F:R,12,0),"") -> 0 | N67: =+IFERROR(VLOOKUP(D67, 'Simulador DATOS'!F:S,14,0),"") -> 10 | O67: =+IFERROR(VLOOKUP(D67, 'Simulador DATOS'!F:T,15,0),"") -> 443.25
D68: 17 | F68: =+IFERROR(VLOOKUP(D68, 'Simulador DATOS'!F:R,6,0),"") -> 2026-04-02 | G68: =+IFERROR(VLOOKUP(D68, 'Simulador DATOS'!F:R,9,0),"") -> 11136.1 | H68: =+IFERROR(VLOOKUP(D68, 'Simulador DATOS'!F:R,10,0),"") -> 130.84 | J68: =+IFERROR(VLOOKUP(D68, 'Simulador DATOS'!F:R,11,0),"") -> 302.41 | L68: =+IFERROR(VLOOKUP(D68, 'Simulador DATOS'!F:R,12,0),"") -> 0 | N68: =+IFERROR(VLOOKUP(D68, 'Simulador DATOS'!F:S,14,0),"") -> 10 | O68: =+IFERROR(VLOOKUP(D68, 'Simulador DATOS'!F:T,15,0),"") -> 443.25
D69: 18 | F69: =+IFERROR(VLOOKUP(D69, 'Simulador DATOS'!F:R,6,0),"") -> 2026-05-02 | G69: =+IFERROR(VLOOKUP(D69, 'Simulador DATOS'!F:R,9,0),"") -> 11005.26 | H69: =+IFERROR(VLOOKUP(D69, 'Simulador DATOS'!F:R,10,0),"") -> 144.16 | J69: =+IFERROR(VLOOKUP(D69, 'Simulador DATOS'!F:R,11,0),"") -> 289.09 | L69: =+IFERROR(VLOOKUP(D69, 'Simulador DATOS'!F:R,12,0),"") -> 0 | N69: =+IFERROR(VLOOKUP(D69, 'Simulador DATOS'!F:S,14,0),"") -> 10 | O69: =+IFERROR(VLOOKUP(D69, 'Simulador DATOS'!F:T,15,0),"") -> 443.25
D70: 19 | F70: =+IFERROR(VLOOKUP(D70, 'Simulador DATOS'!F:R,6,0),"") -> 2026-06-02 | G70: =+IFERROR(VLOOKUP(D70, 'Simulador DATOS'!F:R,9,0),"") -> 10861.1 | H70: =+IFERROR(VLOOKUP(D70, 'Simulador DATOS'!F:R,10,0),"") -> 138.31 | J70: =+IFERROR(VLOOKUP(D70, 'Simulador DATOS'!F:R,11,0),"") -> 294.94 | L70: =+IFERROR(VLOOKUP(D70, 'Simulador DATOS'!F:R,12,0),"") -> 0 | N70: =+IFERROR(VLOOKUP(D70, 'Simulador DATOS'!F:S,14,0),"") -> 10 | O70: =+IFERROR(VLOOKUP(D70, 'Simulador DATOS'!F:T,15,0),"") -> 443.25
D71: 20 | F71: =+IFERROR(VLOOKUP(D71, 'Simulador DATOS'!F:R,6,0),"") -> 2026-07-02 | G71: =+IFERROR(VLOOKUP(D71, 'Simulador DATOS'!F:R,9,0),"") -> 10722.79 | H71: =+IFERROR(VLOOKUP(D71, 'Simulador DATOS'!F:R,10,0),"") -> 151.58 | J71: =+IFERROR(VLOOKUP(D71, 'Simulador DATOS'!F:R,11,0),"") -> 281.67 | L71: =+IFERROR(VLOOKUP(D71, 'Simulador DATOS'!F:R,12,0),"") -> 0 | N71: =+IFERROR(VLOOKUP(D71, 'Simulador DATOS'!F:S,14,0),"") -> 10 | O71: =+IFERROR(VLOOKUP(D71, 'Simulador DATOS'!F:T,15,0),"") -> 443.25
D72: 21 | F72: =+IFERROR(VLOOKUP(D72, 'Simulador DATOS'!F:R,6,0),"") -> 2026-08-02 | G72: =+IFERROR(VLOOKUP(D72, 'Simulador DATOS'!F:R,9,0),"") -> 10571.21 | H72: =+IFERROR(VLOOKUP(D72, 'Simulador DATOS'!F:R,10,0),"") -> 146.18 | J72: =+IFERROR(VLOOKUP(D72, 'Simulador DATOS'!F:R,11,0),"") -> 287.07 | L72: =+IFERROR(VLOOKUP(D72, 'Simulador DATOS'!F:R,12,0),"") -> 0 | N72: =+IFERROR(VLOOKUP(D72, 'Simulador DATOS'!F:S,14,0),"") -> 10 | O72: =+IFERROR(VLOOKUP(D72, 'Simulador DATOS'!F:T,15,0),"") -> 443.25
D73: 22 | F73: =+IFERROR(VLOOKUP(D73, 'Simulador DATOS'!F:R,6,0),"") -> 2026-09-02 | G73: =+IFERROR(VLOOKUP(D73, 'Simulador DATOS'!F:R,9,0),"") -> 10425.03 | H73: =+IFERROR(VLOOKUP(D73, 'Simulador DATOS'!F:R,10,0),"") -> 150.15 | J73: =+IFERROR(VLOOKUP(D73, 'Simulador DATOS'!F:R,11,0),"") -> 283.1 | L73: =+IFERROR(VLOOKUP(D73, 'Simulador DATOS'!F:R,12,0),"") -> 0 | N73: =+IFERROR(VLOOKUP(D73, 'Simulador DATOS'!F:S,14,0),"") -> 10 | O73: =+IFERROR(VLOOKUP(D73, 'Simulador DATOS'!F:T,15,0),"") -> 443.25
D74: 23 | F74: =+IFERROR(VLOOKUP(D74, 'Simulador DATOS'!F:R,6,0),"") -> 2026-10-02 | G74: =+IFERROR(VLOOKUP(D74, 'Simulador DATOS'!F:R,9,0),"") -> 10274.88 | H74: =+IFERROR(VLOOKUP(D74, 'Simulador DATOS'!F:R,10,0),"") -> 163.34 | J74: =+IFERROR(VLOOKUP(D74, 'Simulador DATOS'!F:R,11,0),"") -> 269.91 | L74: =+IFERROR(VLOOKUP(D74, 'Simulador DATOS'!F:R,12,0),"") -> 0 | N74: =+IFERROR(VLOOKUP(D74, 'Simulador DATOS'!F:S,14,0),"") -> 10 | O74: =+IFERROR(VLOOKUP(D74, 'Simulador DATOS'!F:T,15,0),"") -> 443.25
D75: 24 | F75: =+IFERROR(VLOOKUP(D75, 'Simulador DATOS'!F:R,6,0),"") -> 2026-11-02 | G75: =+IFERROR(VLOOKUP(D75, 'Simulador DATOS'!F:R,9,0),"") -> 10111.54 | H75: =+IFERROR(VLOOKUP(D75, 'Simulador DATOS'!F:R,10,0),"") -> 158.66 | J75: =+IFERROR(VLOOKUP(D75, 'Simulador DATOS'!F:R,11,0),"") -> 274.59 | L75: =+IFERROR(VLOOKUP(D75, 'Simulador DATOS'!F:R,12,0),"") -> 0 | N75: =+IFERROR(VLOOKUP(D75, 'Simulador DATOS'!F:S,14,0),"") -> 10 | O75: =+IFERROR(VLOOKUP(D75, 'Simulador DATOS'!F:T,15,0),"") -> 443.25
D76: 25 | F76: =+IFERROR(VLOOKUP(D76, 'Simulador DATOS'!F:R,6,0),"") -> 2026-12-02 | G76: =+IFERROR(VLOOKUP(D76, 'Simulador DATOS'!F:R,9,0),"") -> 9952.88 | H76: =+IFERROR(VLOOKUP(D76, 'Simulador DATOS'!F:R,10,0),"") -> 171.8 | J76: =+IFERROR(VLOOKUP(D76, 'Simulador DATOS'!F:R,11,0),"") -> 261.45 | L76: =+IFERROR(VLOOKUP(D76, 'Simulador DATOS'!F:R,12,0),"") -> 0 | N76: =+IFERROR(VLOOKUP(D76, 'Simulador DATOS'!F:S,14,0),"") -> 10 | O76: =+IFERROR(VLOOKUP(D76, 'Simulador DATOS'!F:T,15,0),"") -> 443.25
D77: 26 | F77: =+IFERROR(VLOOKUP(D77, 'Simulador DATOS'!F:R,6,0),"") -> 2027-01-02 | G77: =+IFERROR(VLOOKUP(D77, 'Simulador DATOS'!F:R,9,0),"") -> 9781.08 | H77: =+IFERROR(VLOOKUP(D77, 'Simulador DATOS'!F:R,10,0),"") -> 167.63 | J77: =+IFERROR(VLOOKUP(D77, 'Simulador DATOS'!F:R,11,0),"") -> 265.62 | L77: =+IFERROR(VLOOKUP(D77, 'Simulador DATOS'!F:R,12,0),"") -> 0 | N77: =+IFERROR(VLOOKUP(D77, 'Simulador DATOS'!F:S,14,0),"") -> 10 | O77: =+IFERROR(VLOOKUP(D77, 'Simulador DATOS'!F:T,15,0),"") -> 443.25
D78: 27 | F78: =+IFERROR(VLOOKUP(D78, 'Simulador DATOS'!F:R,6,0),"") -> 2027-02-02 | G78: =+IFERROR(VLOOKUP(D78, 'Simulador DATOS'!F:R,9,0),"") -> 9613.45 | H78: =+IFERROR(VLOOKUP(D78, 'Simulador DATOS'!F:R,10,0),"") -> 172.19 | J78: =+IFERROR(VLOOKUP(D78, 'Simulador DATOS'!F:R,11,0),"") -> 261.06 | L78: =+IFERROR(VLOOKUP(D78, 'Simulador DATOS'!F:R,12,0),"") -> 0 | N78: =+IFERROR(VLOOKUP(D78, 'Simulador DATOS'!F:S,14,0),"") -> 10 | O78: =+IFERROR(VLOOKUP(D78, 'Simulador DATOS'!F:T,15,0),"") -> 443.25
D79: 28 | F79: =+IFERROR(VLOOKUP(D79, 'Simulador DATOS'!F:R,6,0),"") -> 2027-03-02 | G79: =+IFERROR(VLOOKUP(D79, 'Simulador DATOS'!F:R,9,0),"") -> 9441.26 | H79: =+IFERROR(VLOOKUP(D79, 'Simulador DATOS'!F:R,10,0),"") -> 201.98 | J79: =+IFERROR(VLOOKUP(D79, 'Simulador DATOS'!F:R,11,0),"") -> 231.27 | L79: =+IFERROR(VLOOKUP(D79, 'Simulador DATOS'!F:R,12,0),"") -> 0 | N79: =+IFERROR(VLOOKUP(D79, 'Simulador DATOS'!F:S,14,0),"") -> 10 | O79: =+IFERROR(VLOOKUP(D79, 'Simulador DATOS'!F:T,15,0),"") -> 443.25
D80: 29 | F80: =+IFERROR(VLOOKUP(D80, 'Simulador DATOS'!F:R,6,0),"") -> 2027-04-02 | G80: =+IFERROR(VLOOKUP(D80, 'Simulador DATOS'!F:R,9,0),"") -> 9239.28 | H80: =+IFERROR(VLOOKUP(D80, 'Simulador DATOS'!F:R,10,0),"") -> 182.35 | J80: =+IFERROR(VLOOKUP(D80, 'Simulador DATOS'!F:R,11,0),"") -> 250.9 | L80: =+IFERROR(VLOOKUP(D80, 'Simulador DATOS'!F:R,12,0),"") -> 0 | N80: =+IFERROR(VLOOKUP(D80, 'Simulador DATOS'!F:S,14,0),"") -> 10 | O80: =+IFERROR(VLOOKUP(D80, 'Simulador DATOS'!F:T,15,0),"") -> 443.25
D81: 30 | F81: =+IFERROR(VLOOKUP(D81, 'Simulador DATOS'!F:R,6,0),"") -> 2027-05-02 | G81: =+IFERROR(VLOOKUP(D81, 'Simulador DATOS'!F:R,9,0),"") -> 9056.93 | H81: =+IFERROR(VLOOKUP(D81, 'Simulador DATOS'!F:R,10,0),"") -> 195.34 | J81: =+IFERROR(VLOOKUP(D81, 'Simulador DATOS'!F:R,11,0),"") -> 237.91 | L81: =+IFERROR(VLOOKUP(D81, 'Simulador DATOS'!F:R,12,0),"") -> 0 | N81: =+IFERROR(VLOOKUP(D81, 'Simulador DATOS'!F:S,14,0),"") -> 10 | O81: =+IFERROR(VLOOKUP(D81, 'Simulador DATOS'!F:T,15,0),"") -> 443.25
D82: 31 | F82: =+IFERROR(VLOOKUP(D82, 'Simulador DATOS'!F:R,6,0),"") -> 2027-06-02 | G82: =+IFERROR(VLOOKUP(D82, 'Simulador DATOS'!F:R,9,0),"") -> 8861.59 | H82: =+IFERROR(VLOOKUP(D82, 'Simulador DATOS'!F:R,10,0),"") -> 192.6 | J82: =+IFERROR(VLOOKUP(D82, 'Simulador DATOS'!F:R,11,0),"") -> 240.65 | L82: =+IFERROR(VLOOKUP(D82, 'Simulador DATOS'!F:R,12,0),"") -> 0 | N82: =+IFERROR(VLOOKUP(D82, 'Simulador DATOS'!F:S,14,0),"") -> 10 | O82: =+IFERROR(VLOOKUP(D82, 'Simulador DATOS'!F:T,15,0),"") -> 443.25
D83: 32 | F83: =+IFERROR(VLOOKUP(D83, 'Simulador DATOS'!F:R,6,0),"") -> 2027-07-02 | G83: =+IFERROR(VLOOKUP(D83, 'Simulador DATOS'!F:R,9,0),"") -> 8668.99 | H83: =+IFERROR(VLOOKUP(D83, 'Simulador DATOS'!F:R,10,0),"") -> 205.53 | J83: =+IFERROR(VLOOKUP(D83, 'Simulador DATOS'!F:R,11,0),"") -> 227.72 | L83: =+IFERROR(VLOOKUP(D83, 'Simulador DATOS'!F:R,12,0),"") -> 0 | N83: =+IFERROR(VLOOKUP(D83, 'Simulador DATOS'!F:S,14,0),"") -> 10 | O83: =+IFERROR(VLOOKUP(D83, 'Simulador DATOS'!F:T,15,0),"") -> 443.25
D84: 33 | F84: =+IFERROR(VLOOKUP(D84, 'Simulador DATOS'!F:R,6,0),"") -> 2027-08-02 | G84: =+IFERROR(VLOOKUP(D84, 'Simulador DATOS'!F:R,9,0),"") -> 8463.46 | H84: =+IFERROR(VLOOKUP(D84, 'Simulador DATOS'!F:R,10,0),"") -> 203.42 | J84: =+IFERROR(VLOOKUP(D84, 'Simulador DATOS'!F:R,11,0),"") -> 229.83 | L84: =+IFERROR(VLOOKUP(D84, 'Simulador DATOS'!F:R,12,0),"") -> 0 | N84: =+IFERROR(VLOOKUP(D84, 'Simulador DATOS'!F:S,14,0),"") -> 10 | O84: =+IFERROR(VLOOKUP(D84, 'Simulador DATOS'!F:T,15,0),"") -> 443.25
D85: =+IF(D84="", "", IF((D84+1)>$G$15,"", D84+1)) -> 34 | F85: =+IFERROR(VLOOKUP(D85, 'Simulador DATOS'!F:R,6,0),"") -> 2027-09-02 | G85: =+IFERROR(VLOOKUP(D85, 'Simulador DATOS'!F:R,9,0),"") -> 8260.04 | H85: =+IFERROR(VLOOKUP(D85, 'Simulador DATOS'!F:R,10,0),"") -> 208.94 | J85: =+IFERROR(VLOOKUP(D85, 'Simulador DATOS'!F:R,11,0),"") -> 224.31 | L85: =+IFERROR(VLOOKUP(D85, 'Simulador DATOS'!F:R,12,0),"") -> 0 | N85: =+IFERROR(VLOOKUP(D85, 'Simulador DATOS'!F:S,14,0),"") -> 10 | O85: =+IFERROR(VLOOKUP(D85, 'Simulador DATOS'!F:T,15,0),"") -> 443.25
D86: 35 | F86: =+IFERROR(VLOOKUP(D86, 'Simulador DATOS'!F:R,6,0),"") -> 2027-10-02 | G86: =+IFERROR(VLOOKUP(D86, 'Simulador DATOS'!F:R,9,0),"") -> 8051.1 | H86: =+IFERROR(VLOOKUP(D86, 'Simulador DATOS'!F:R,10,0),"") -> 221.76 | J86: =+IFERROR(VLOOKUP(D86, 'Simulador DATOS'!F:R,11,0),"") -> 211.49 | L86: =+IFERROR(VLOOKUP(D86, 'Simulador DATOS'!F:R,12,0),"") -> 0 | N86: =+IFERROR(VLOOKUP(D86, 'Simulador DATOS'!F:S,14,0),"") -> 10 | O86: =+IFERROR(VLOOKUP(D86, 'Simulador DATOS'!F:T,15,0),"") -> 443.25
D87: 36 | F87: =+IFERROR(VLOOKUP(D87, 'Simulador DATOS'!F:R,6,0),"") -> 2027-11-02 | G87: =+IFERROR(VLOOKUP(D87, 'Simulador DATOS'!F:R,9,0),"") -> 7829.34 | H87: =+IFERROR(VLOOKUP(D87, 'Simulador DATOS'!F:R,10,0),"") -> 220.64 | J87: =+IFERROR(VLOOKUP(D87, 'Simulador DATOS'!F:R,11,0),"") -> 212.61 | L87: =+IFERROR(VLOOKUP(D87, 'Simulador DATOS'!F:R,12,0),"") -> 0 | N87: =+IFERROR(VLOOKUP(D87, 'Simulador DATOS'!F:S,14,0),"") -> 10 | O87: =+IFERROR(VLOOKUP(D87, 'Simulador DATOS'!F:T,15,0),"") -> 443.25
D88: 37 | F88: =+IFERROR(VLOOKUP(D88, 'Simulador DATOS'!F:R,6,0),"") -> 2027-12-02 | G88: =+IFERROR(VLOOKUP(D88, 'Simulador DATOS'!F:R,9,0),"") -> 7608.7 | H88: =+IFERROR(VLOOKUP(D88, 'Simulador DATOS'!F:R,10,0),"") -> 233.38 | J88: =+IFERROR(VLOOKUP(D88, 'Simulador DATOS'!F:R,11,0),"") -> 199.87 | L88: =+IFERROR(VLOOKUP(D88, 'Simulador DATOS'!F:R,12,0),"") -> 0 | N88: =+IFERROR(VLOOKUP(D88, 'Simulador DATOS'!F:S,14,0),"") -> 10 | O88: =+IFERROR(VLOOKUP(D88, 'Simulador DATOS'!F:T,15,0),"") -> 443.25
D89: 38 | F89: =+IFERROR(VLOOKUP(D89, 'Simulador DATOS'!F:R,6,0),"") -> 2028-01-02 | G89: =+IFERROR(VLOOKUP(D89, 'Simulador DATOS'!F:R,9,0),"") -> 7375.32 | H89: =+IFERROR(VLOOKUP(D89, 'Simulador DATOS'!F:R,10,0),"") -> 232.97 | J89: =+IFERROR(VLOOKUP(D89, 'Simulador DATOS'!F:R,11,0),"") -> 200.28 | L89: =+IFERROR(VLOOKUP(D89, 'Simulador DATOS'!F:R,12,0),"") -> 0 | N89: =+IFERROR(VLOOKUP(D89, 'Simulador DATOS'!F:S,14,0),"") -> 10 | O89: =+IFERROR(VLOOKUP(D89, 'Simulador DATOS'!F:T,15,0),"") -> 443.25
D90: 39 | F90: =+IFERROR(VLOOKUP(D90, 'Simulador DATOS'!F:R,6,0),"") -> 2028-02-02 | G90: =+IFERROR(VLOOKUP(D90, 'Simulador DATOS'!F:R,9,0),"") -> 7142.35 | H90: =+IFERROR(VLOOKUP(D90, 'Simulador DATOS'!F:R,10,0),"") -> 239.29 | J90: =+IFERROR(VLOOKUP(D90, 'Simulador DATOS'!F:R,11,0),"") -> 193.96 | L90: =+IFERROR(VLOOKUP(D90, 'Simulador DATOS'!F:R,12,0),"") -> 0 | N90: =+IFERROR(VLOOKUP(D90, 'Simulador DATOS'!F:S,14,0),"") -> 10 | O90: =+IFERROR(VLOOKUP(D90, 'Simulador DATOS'!F:T,15,0),"") -> 443.25
D91: 40 | F91: =+IFERROR(VLOOKUP(D91, 'Simulador DATOS'!F:R,6,0),"") -> 2028-03-02 | G91: =+IFERROR(VLOOKUP(D91, 'Simulador DATOS'!F:R,9,0),"") -> 6903.06 | H91: =+IFERROR(VLOOKUP(D91, 'Simulador DATOS'!F:R,10,0),"") -> 258.04 | J91: =+IFERROR(VLOOKUP(D91, 'Simulador DATOS'!F:R,11,0),"") -> 175.21 | L91: =+IFERROR(VLOOKUP(D91, 'Simulador DATOS'!F:R,12,0),"") -> 0 | N91: =+IFERROR(VLOOKUP(D91, 'Simulador DATOS'!F:S,14,0),"") -> 10 | O91: =+IFERROR(VLOOKUP(D91, 'Simulador DATOS'!F:T,15,0),"") -> 443.25
D92: 41 | F92: =+IFERROR(VLOOKUP(D92, 'Simulador DATOS'!F:R,6,0),"") -> 2028-04-02 | G92: =+IFERROR(VLOOKUP(D92, 'Simulador DATOS'!F:R,9,0),"") -> 6645.02 | H92: =+IFERROR(VLOOKUP(D92, 'Simulador DATOS'!F:R,10,0),"") -> 252.8 | J92: =+IFERROR(VLOOKUP(D92, 'Simulador DATOS'!F:R,11,0),"") -> 180.45 | L92: =+IFERROR(VLOOKUP(D92, 'Simulador DATOS'!F:R,12,0),"") -> 0 | N92: =+IFERROR(VLOOKUP(D92, 'Simulador DATOS'!F:S,14,0),"") -> 10 | O92: =+IFERROR(VLOOKUP(D92, 'Simulador DATOS'!F:T,15,0),"") -> 443.25
D93: 42 | F93: =+IFERROR(VLOOKUP(D93, 'Simulador DATOS'!F:R,6,0),"") -> 2028-05-02 | G93: =+IFERROR(VLOOKUP(D93, 'Simulador DATOS'!F:R,9,0),"") -> 6392.22 | H93: =+IFERROR(VLOOKUP(D93, 'Simulador DATOS'!F:R,10,0),"") -> 265.34 | J93: =+IFERROR(VLOOKUP(D93, 'Simulador DATOS'!F:R,11,0),"") -> 167.91 | L93: =+IFERROR(VLOOKUP(D93, 'Simulador DATOS'!F:R,12,0),"") -> 0 | N93: =+IFERROR(VLOOKUP(D93, 'Simulador DATOS'!F:S,14,0),"") -> 10 | O93: =+IFERROR(VLOOKUP(D93, 'Simulador DATOS'!F:T,15,0),"") -> 443.25
D94: 43 | F94: =+IFERROR(VLOOKUP(D94, 'Simulador DATOS'!F:R,6,0),"") -> 2028-06-02 | G94: =+IFERROR(VLOOKUP(D94, 'Simulador DATOS'!F:R,9,0),"") -> 6126.88 | H94: =+IFERROR(VLOOKUP(D94, 'Simulador DATOS'!F:R,10,0),"") -> 266.87 | J94: =+IFERROR(VLOOKUP(D94, 'Simulador DATOS'!F:R,11,0),"") -> 166.38 | L94: =+IFERROR(VLOOKUP(D94, 'Simulador DATOS'!F:R,12,0),"") -> 0 | N94: =+IFERROR(VLOOKUP(D94, 'Simulador DATOS'!F:S,14,0),"") -> 10 | O94: =+IFERROR(VLOOKUP(D94, 'Simulador DATOS'!F:T,15,0),"") -> 443.25
D95: 44 | F95: =+IFERROR(VLOOKUP(D95, 'Simulador DATOS'!F:R,6,0),"") -> 2028-07-02 | G95: =+IFERROR(VLOOKUP(D95, 'Simulador DATOS'!F:R,9,0),"") -> 5860.01 | H95: =+IFERROR(VLOOKUP(D95, 'Simulador DATOS'!F:R,10,0),"") -> 279.32 | J95: =+IFERROR(VLOOKUP(D95, 'Simulador DATOS'!F:R,11,0),"") -> 153.93 | L95: =+IFERROR(VLOOKUP(D95, 'Simulador DATOS'!F:R,12,0),"") -> 0 | N95: =+IFERROR(VLOOKUP(D95, 'Simulador DATOS'!F:S,14,0),"") -> 10 | O95: =+IFERROR(VLOOKUP(D95, 'Simulador DATOS'!F:T,15,0),"") -> 443.25
D96: 45 | F96: =+IFERROR(VLOOKUP(D96, 'Simulador DATOS'!F:R,6,0),"") -> 2028-08-02 | G96: =+IFERROR(VLOOKUP(D96, 'Simulador DATOS'!F:R,9,0),"") -> 5580.69 | H96: =+IFERROR(VLOOKUP(D96, 'Simulador DATOS'!F:R,10,0),"") -> 281.7 | J96: =+IFERROR(VLOOKUP(D96, 'Simulador DATOS'!F:R,11,0),"") -> 151.55 | L96: =+IFERROR(VLOOKUP(D96, 'Simulador DATOS'!F:R,12,0),"") -> 0 | N96: =+IFERROR(VLOOKUP(D96, 'Simulador DATOS'!F:S,14,0),"") -> 10 | O96: =+IFERROR(VLOOKUP(D96, 'Simulador DATOS'!F:T,15,0),"") -> 443.25
D97: 46 | F97: =+IFERROR(VLOOKUP(D97, 'Simulador DATOS'!F:R,6,0),"") -> 2028-09-02 | G97: =+IFERROR(VLOOKUP(D97, 'Simulador DATOS'!F:R,9,0),"") -> 5298.99 | H97: =+IFERROR(VLOOKUP(D97, 'Simulador DATOS'!F:R,10,0),"") -> 289.35 | J97: =+IFERROR(VLOOKUP(D97, 'Simulador DATOS'!F:R,11,0),"") -> 143.9 | L97: =+IFERROR(VLOOKUP(D97, 'Simulador DATOS'!F:R,12,0),"") -> 0 | N97: =+IFERROR(VLOOKUP(D97, 'Simulador DATOS'!F:S,14,0),"") -> 10 | O97: =+IFERROR(VLOOKUP(D97, 'Simulador DATOS'!F:T,15,0),"") -> 443.25
D98: 47 | F98: =+IFERROR(VLOOKUP(D98, 'Simulador DATOS'!F:R,6,0),"") -> 2028-10-02 | G98: =+IFERROR(VLOOKUP(D98, 'Simulador DATOS'!F:R,9,0),"") -> 5009.64 | H98: =+IFERROR(VLOOKUP(D98, 'Simulador DATOS'!F:R,10,0),"") -> 301.65 | J98: =+IFERROR(VLOOKUP(D98, 'Simulador DATOS'!F:R,11,0),"") -> 131.6 | L98: =+IFERROR(VLOOKUP(D98, 'Simulador DATOS'!F:R,12,0),"") -> 0 | N98: =+IFERROR(VLOOKUP(D98, 'Simulador DATOS'!F:S,14,0),"") -> 10 | O98: =+IFERROR(VLOOKUP(D98, 'Simulador DATOS'!F:T,15,0),"") -> 443.25
D99: 48 | F99: =+IFERROR(VLOOKUP(D99, 'Simulador DATOS'!F:R,6,0),"") -> 2028-11-02 | G99: =+IFERROR(VLOOKUP(D99, 'Simulador DATOS'!F:R,9,0),"") -> 4707.99 | H99: =+IFERROR(VLOOKUP(D99, 'Simulador DATOS'!F:R,10,0),"") -> 305.4 | J99: =+IFERROR(VLOOKUP(D99, 'Simulador DATOS'!F:R,11,0),"") -> 127.85 | L99: =+IFERROR(VLOOKUP(D99, 'Simulador DATOS'!F:R,12,0),"") -> 0 | N99: =+IFERROR(VLOOKUP(D99, 'Simulador DATOS'!F:S,14,0),"") -> 10 | O99: =+IFERROR(VLOOKUP(D99, 'Simulador DATOS'!F:T,15,0),"") -> 443.25
D100: 49 | F100: =+IFERROR(VLOOKUP(D100, 'Simulador DATOS'!F:R,6,0),"") -> 2028-12-02 | G100: =+IFERROR(VLOOKUP(D100, 'Simulador DATOS'!F:R,9,0),"") -> 4402.59 | H100: =+IFERROR(VLOOKUP(D100, 'Simulador DATOS'!F:R,10,0),"") -> 317.6 | J100: =+IFERROR(VLOOKUP(D100, 'Simulador DATOS'!F:R,11,0),"") -> 115.65 | L100: =+IFERROR(VLOOKUP(D100, 'Simulador DATOS'!F:R,12,0),"") -> 0 | N100: =+IFERROR(VLOOKUP(D100, 'Simulador DATOS'!F:S,14,0),"") -> 10 | O100: =+IFERROR(VLOOKUP(D100, 'Simulador DATOS'!F:T,15,0),"") -> 443.25
D101: 50 | F101: =+IFERROR(VLOOKUP(D101, 'Simulador DATOS'!F:R,6,0),"") -> 2029-01-02 | G101: =+IFERROR(VLOOKUP(D101, 'Simulador DATOS'!F:R,9,0),"") -> 4084.99 | H101: =+IFERROR(VLOOKUP(D101, 'Simulador DATOS'!F:R,10,0),"") -> 322.32 | J101: =+IFERROR(VLOOKUP(D101, 'Simulador DATOS'!F:R,11,0),"") -> 110.93 | L101: =+IFERROR(VLOOKUP(D101, 'Simulador DATOS'!F:R,12,0),"") -> 0 | N101: =+IFERROR(VLOOKUP(D101, 'Simulador DATOS'!F:S,14,0),"") -> 10 | O101: =+IFERROR(VLOOKUP(D101, 'Simulador DATOS'!F:T,15,0),"") -> 443.25
D102: 51 | F102: =+IFERROR(VLOOKUP(D102, 'Simulador DATOS'!F:R,6,0),"") -> 2029-02-02 | G102: =+IFERROR(VLOOKUP(D102, 'Simulador DATOS'!F:R,9,0),"") -> 3762.67 | H102: =+IFERROR(VLOOKUP(D102, 'Simulador DATOS'!F:R,10,0),"") -> 331.07 | J102: =+IFERROR(VLOOKUP(D102, 'Simulador DATOS'!F:R,11,0),"") -> 102.18 | L102: =+IFERROR(VLOOKUP(D102, 'Simulador DATOS'!F:R,12,0),"") -> 0 | N102: =+IFERROR(VLOOKUP(D102, 'Simulador DATOS'!F:S,14,0),"") -> 10 | O102: =+IFERROR(VLOOKUP(D102, 'Simulador DATOS'!F:T,15,0),"") -> 443.25
D103: 52 | F103: =+IFERROR(VLOOKUP(D103, 'Simulador DATOS'!F:R,6,0),"") -> 2029-03-02 | G103: =+IFERROR(VLOOKUP(D103, 'Simulador DATOS'!F:R,9,0),"") -> 3431.6 | H103: =+IFERROR(VLOOKUP(D103, 'Simulador DATOS'!F:R,10,0),"") -> 349.19 | J103: =+IFERROR(VLOOKUP(D103, 'Simulador DATOS'!F:R,11,0),"") -> 84.06 | L103: =+IFERROR(VLOOKUP(D103, 'Simulador DATOS'!F:R,12,0),"") -> 0 | N103: =+IFERROR(VLOOKUP(D103, 'Simulador DATOS'!F:S,14,0),"") -> 10 | O103: =+IFERROR(VLOOKUP(D103, 'Simulador DATOS'!F:T,15,0),"") -> 443.25
D104: 53 | F104: =+IFERROR(VLOOKUP(D104, 'Simulador DATOS'!F:R,6,0),"") -> 2029-04-02 | G104: =+IFERROR(VLOOKUP(D104, 'Simulador DATOS'!F:R,9,0),"") -> 3082.41 | H104: =+IFERROR(VLOOKUP(D104, 'Simulador DATOS'!F:R,10,0),"") -> 349.54 | J104: =+IFERROR(VLOOKUP(D104, 'Simulador DATOS'!F:R,11,0),"") -> 83.71 | L104: =+IFERROR(VLOOKUP(D104, 'Simulador DATOS'!F:R,12,0),"") -> 0 | N104: =+IFERROR(VLOOKUP(D104, 'Simulador DATOS'!F:S,14,0),"") -> 10 | O104: =+IFERROR(VLOOKUP(D104, 'Simulador DATOS'!F:T,15,0),"") -> 443.25
D105: 54 | F105: =+IFERROR(VLOOKUP(D105, 'Simulador DATOS'!F:R,6,0),"") -> 2029-05-02 | G105: =+IFERROR(VLOOKUP(D105, 'Simulador DATOS'!F:R,9,0),"") -> 2732.87 | H105: =+IFERROR(VLOOKUP(D105, 'Simulador DATOS'!F:R,10,0),"") -> 361.46 | J105: =+IFERROR(VLOOKUP(D105, 'Simulador DATOS'!F:R,11,0),"") -> 71.79 | L105: =+IFERROR(VLOOKUP(D105, 'Simulador DATOS'!F:R,12,0),"") -> 0 | N105: =+IFERROR(VLOOKUP(D105, 'Simulador DATOS'!F:S,14,0),"") -> 10 | O105: =+IFERROR(VLOOKUP(D105, 'Simulador DATOS'!F:T,15,0),"") -> 443.25
D106: 55 | F106: =+IFERROR(VLOOKUP(D106, 'Simulador DATOS'!F:R,6,0),"") -> 2029-06-02 | G106: =+IFERROR(VLOOKUP(D106, 'Simulador DATOS'!F:R,9,0),"") -> 2371.41 | H106: =+IFERROR(VLOOKUP(D106, 'Simulador DATOS'!F:R,10,0),"") -> 368.85 | J106: =+IFERROR(VLOOKUP(D106, 'Simulador DATOS'!F:R,11,0),"") -> 64.4 | L106: =+IFERROR(VLOOKUP(D106, 'Simulador DATOS'!F:R,12,0),"") -> 0 | N106: =+IFERROR(VLOOKUP(D106, 'Simulador DATOS'!F:S,14,0),"") -> 10 | O106: =+IFERROR(VLOOKUP(D106, 'Simulador DATOS'!F:T,15,0),"") -> 443.25
D107: 56 | F107: =+IFERROR(VLOOKUP(D107, 'Simulador DATOS'!F:R,6,0),"") -> 2029-07-02 | G107: =+IFERROR(VLOOKUP(D107, 'Simulador DATOS'!F:R,9,0),"") -> 2002.56 | H107: =+IFERROR(VLOOKUP(D107, 'Simulador DATOS'!F:R,10,0),"") -> 380.65 | J107: =+IFERROR(VLOOKUP(D107, 'Simulador DATOS'!F:R,11,0),"") -> 52.6 | L107: =+IFERROR(VLOOKUP(D107, 'Simulador DATOS'!F:R,12,0),"") -> 0 | N107: =+IFERROR(VLOOKUP(D107, 'Simulador DATOS'!F:S,14,0),"") -> 10 | O107: =+IFERROR(VLOOKUP(D107, 'Simulador DATOS'!F:T,15,0),"") -> 443.25
D108: 57 | F108: =+IFERROR(VLOOKUP(D108, 'Simulador DATOS'!F:R,6,0),"") -> 2029-08-02 | G108: =+IFERROR(VLOOKUP(D108, 'Simulador DATOS'!F:R,9,0),"") -> 1621.91 | H108: =+IFERROR(VLOOKUP(D108, 'Simulador DATOS'!F:R,10,0),"") -> 389.21 | J108: =+IFERROR(VLOOKUP(D108, 'Simulador DATOS'!F:R,11,0),"") -> 44.04 | L108: =+IFERROR(VLOOKUP(D108, 'Simulador DATOS'!F:R,12,0),"") -> 0 | N108: =+IFERROR(VLOOKUP(D108, 'Simulador DATOS'!F:S,14,0),"") -> 10 | O108: =+IFERROR(VLOOKUP(D108, 'Simulador DATOS'!F:T,15,0),"") -> 443.25
D109: 58 | F109: =+IFERROR(VLOOKUP(D109, 'Simulador DATOS'!F:R,6,0),"") -> 2029-09-02 | G109: =+IFERROR(VLOOKUP(D109, 'Simulador DATOS'!F:R,9,0),"") -> 1232.7 | H109: =+IFERROR(VLOOKUP(D109, 'Simulador DATOS'!F:R,10,0),"") -> 399.77 | J109: =+IFERROR(VLOOKUP(D109, 'Simulador DATOS'!F:R,11,0),"") -> 33.48 | L109: =+IFERROR(VLOOKUP(D109, 'Simulador DATOS'!F:R,12,0),"") -> 0 | N109: =+IFERROR(VLOOKUP(D109, 'Simulador DATOS'!F:S,14,0),"") -> 10 | O109: =+IFERROR(VLOOKUP(D109, 'Simulador DATOS'!F:T,15,0),"") -> 443.25
D110: 59 | F110: =+IFERROR(VLOOKUP(D110, 'Simulador DATOS'!F:R,6,0),"") -> 2029-10-02 | G110: =+IFERROR(VLOOKUP(D110, 'Simulador DATOS'!F:R,9,0),"") -> 832.93 | H110: =+IFERROR(VLOOKUP(D110, 'Simulador DATOS'!F:R,10,0),"") -> 411.37 | J110: =+IFERROR(VLOOKUP(D110, 'Simulador DATOS'!F:R,11,0),"") -> 21.88 | L110: =+IFERROR(VLOOKUP(D110, 'Simulador DATOS'!F:R,12,0),"") -> 0 | N110: =+IFERROR(VLOOKUP(D110, 'Simulador DATOS'!F:S,14,0),"") -> 10 | O110: =+IFERROR(VLOOKUP(D110, 'Simulador DATOS'!F:T,15,0),"") -> 443.25
D111: 60 | F111: =+IFERROR(VLOOKUP(D111, 'Simulador DATOS'!F:R,6,0),"") -> 2029-11-02 | G111: =+IFERROR(VLOOKUP(D111, 'Simulador DATOS'!F:R,9,0),"") -> 421.56 | H111: =+IFERROR(VLOOKUP(D111, 'Simulador DATOS'!F:R,10,0),"") -> 421.56 | J111: =+IFERROR(VLOOKUP(D111, 'Simulador DATOS'!F:R,11,0),"") -> 11.45 | L111: =+IFERROR(VLOOKUP(D111, 'Simulador DATOS'!F:R,12,0),"") -> 0 | N111: =+IFERROR(VLOOKUP(D111, 'Simulador DATOS'!F:S,14,0),"") -> 10 | O111: =+IFERROR(VLOOKUP(D111, 'Simulador DATOS'!F:T,15,0),"") -> 443.01
D112: =+IF(D111="", "", IF((D111+1)>$G$15,"", D111+1)) ->  | F112: =+IFERROR(VLOOKUP(D112, 'Simulador DATOS'!F:R,6,0),"") ->  | G112: =+IFERROR(VLOOKUP(D112, 'Simulador DATOS'!F:R,9,0),"") ->  | H112: =+IFERROR(VLOOKUP(D112, 'Simulador DATOS'!F:R,10,0),"") ->  | J112: =+IFERROR(VLOOKUP(D112, 'Simulador DATOS'!F:R,11,0),"") ->  | L112: =+IFERROR(VLOOKUP(D112, 'Simulador DATOS'!F:R,12,0),"") ->  | N112: =+IFERROR(VLOOKUP(D112, 'Simulador DATOS'!F:S,14,0),"") ->  | O112: =+IFERROR(VLOOKUP(D112, 'Simulador DATOS'!F:T,15,0),"") -> 
D113: =+IF(D112="", "", IF((D112+1)>$G$15,"", D112+1)) ->  | F113: =+IFERROR(VLOOKUP(D113, 'Simulador DATOS'!F:R,6,0),"") ->  | G113: =+IFERROR(VLOOKUP(D113, 'Simulador DATOS'!F:R,9,0),"") ->  | H113: =+IFERROR(VLOOKUP(D113, 'Simulador DATOS'!F:R,10,0),"") ->  | J113: =+IFERROR(VLOOKUP(D113, 'Simulador DATOS'!F:R,11,0),"") ->  | L113: =+IFERROR(VLOOKUP(D113, 'Simulador DATOS'!F:R,12,0),"") ->  | N113: =+IFERROR(VLOOKUP(D113, 'Simulador DATOS'!F:S,14,0),"") ->  | O113: =+IFERROR(VLOOKUP(D113, 'Simulador DATOS'!F:T,15,0),"") -> 

Sheet Simulador DATOS (hidden)
K1: =+($C$19-$C$17) -> 40 | N1: =+N8/SUM(M8:M128) -> 433.2485956
K2: =+SUM(OFFSET($L$8, IF(F9=0, 0, 1), 0):L9) -> 30 | N2: =+N9/SUM(M8:M128) -> 437.0093519
L4: CRONOGRAMA EXTRACASH
B6: TC | C6: 3.8 | F6: Cuota | G6: Días | H6: Mes | I6: Año | J6: EX/ORD | K6: Vencimiento | L6: Días reales | M6: Factor | N6: Saldo Capital | O6: Amortización | P6: Interés | Q6: Desgravamen | R6: Pago | S6: Comisión | T6: Total Cuota | U6: Tasación | V6: Gastos Notariales | W6: Gastos Registrales | X6: Otros Gastos | Y6: Total | AB6: =+IRR(AB7:AB128) -> 0.02764993315 | AC6: =+(1+AB6)^(12)-1 -> 0.3872105399
B7: Importe Dolares | C7: =+IF(SIMULADOR_!G9="DÓLARES",SIMULADOR_!G13,SIMULADOR_!G13/C6) -> 3216.315789 | AB7: =+MAX(N8:N128) -> 12910.1
B8: Importe del pp: | C8: =+SIMULADOR_!G13+SIMULADOR_!G31 -> 12799 | E8: 1 | F8: =+IF($C$19>K8,0,1+F7) -> 0 | G8: =IF($F8=0,DAY(K8),IF($C$15>=$F8,$C$18,0)) -> 2 | H8: =IF($F8=0,MONTH(K8),IF($F8=1,MONTH($C$19),IF($C$15>=$F8,IF(H7=12,1,H7+1),0))) -> 11 | I8: =IF($F8=0,YEAR(K8),IF($F8=1,YEAR($C$19),IF($C$15>=$F8,IF(H7=12,I7+1,I7),0))) -> 2024 | J8: =IF($C$35=2,IF(IF(DAY(K8)<=15,IF(OR(MONTH(K8)=8,MONTH(K8)=1),1,0),IF(OR(MONTH(K8)=7,MONTH(K8)=12),1,0)),2,IF(OR(F8="",F8=0),0,1)),IF(OR(F8="",F8=0),0,1)) -> 0 | K8: =+DATE(YEAR(C17),MONTH(C17)+1,C18) -> 2024-11-02 | L8: =+K8-C17 -> 10 | M8: =IF(OR(F8>$C$15, F8=0),0, 1*(1/(1+$C$30)^SUM(OFFSET($L$8, IF(F8=0, 1, 0), 0):L8)))*J8 -> 0 | N8: =C8 -> 12799 | O8: =IF(AND(F8>0,F8<$C$15),R8-P8-Q8, IF(AND(F8>0,F8=$C$15), N8, -P8-Q8)) -> -111.1 | P8: =ROUND(N8*((1+$C$12)^(L8/30)-1),2) -> 111.1 | Q8: =+N8*((1+$C$27)^(L8)-1) -> 0 | R8: =ROUND(IF(AND(F8>0,F8<$C$15),OFFSET($N$8,IF(F8=0,1,0),0)/SUM($M$8:$M$204),IF(F8=$C$15,N8+P8+Q8,0)),2)*J8 -> 0 | S8: =+IF(OR(F8=0,F8>$C$15),0,IF(F8<=$C$15,$C$39,0)) -> 0 | T8: =IF(F8=0,0,O8+P8+Q8+S8) -> 0 | AA8: =IF(IF(F8=0,"",F8)>$C$15,"",IF(F8=0,"",F8)) ->  | AB8: =IF(T8=0, "", -T8) -> 
E9: 2 | F9: =+IF($C$19>K9,0,1+F8) -> 1 | G9: =IF($F9=0,DAY(K9),IF($C$15>=$F9,$C$18,0)) -> 2 | H9: =IF($F9=0,MONTH(K9),IF($F9=1,MONTH($C$19),IF($C$15>=$F9,IF(H8=12,1,H8+1),0))) -> 12 | I9: 2024 | J9: =IF($C$35=2,IF(IF(DAY(K9)<=15,IF(OR(MONTH(K9)=8,MONTH(K9)=1),1,0),IF(OR(MONTH(K9)=7,MONTH(K9)=12),1,0)),2,IF(OR(F9="",F9=0),0,1)),IF(OR(F9="",F9=0),0,1)) -> 1 | K9: =+EDATE(K8,1) -> 2024-12-02 | L9: =IF($C$15>=$F9,K9-K8,0) -> 30 | M9: =IF(OR(F9>$C$15, F9=0),0, 1*(1/(1+$C$30)^SUM(OFFSET($L$8, IF(F9=0, 1, 0), 0):L9)))*J9 -> 0.9660180938 | N9: =IF(N8-O8<0.000000001,0,N8-O8) -> 12910.1 | O9: =IF(AND(F9>0,F9<$C$15),R9-P9-Q9, IF(AND(F9>0,F9=$C$15), N9, -P9-Q9)) -> 94.12 | P9: =ROUND(N9*((1+$C$12)^(L9/30)-1),2) -> 339.13 | Q9: =+N9*((1+$C$27)^(L9)-1) -> 0 | R9: =ROUND(IF(AND(F9>0,F9<$C$15),OFFSET($N$8,IF(F9=0,1,0),0)/SUM($M$8:$M$204),IF(F9=$C$15,N9+P9+Q9,0)),2)*J9 -> 433.25 | S9: =+IF(OR(F9=0,F9>$C$15),0,IF(F9<=$C$15,$C$39,0)) -> 10 | T9: =IF(F9=0,0,O9+P9+Q9+S9) -> 443.25 | U9: =IF($C$15>=$F8,-PMT($C$12,$C$15,$C$31,0),0) -> 0 | V9: =IF($C$15>=$F8,-PMT($C$12,$C$15,$C$32,0),0) -> 0 | W9: =IF($C$15>=$F8,-PMT($C$12,$C$15,$C$33,0),0) -> 0 | X9: 0 | Y9: =T8+U9+V9+W9+X9 -> 0 | AA9: =IF(IF(F9=0,"",F9)>$C$15,"",IF(F9=0,"",F9)) -> 1 | AB9: =IF(T9=0, "", -T9) -> -443.25
B10: TCEA (Anual): | C10: =+AC6 -> 0.3872105399 | E10: 3 | F10: 2 | G10: =IF($F10=0,DAY(K10),IF($C$15>=$F10,$C$18,0)) -> 2 | H10: 1 | I10: 2025 | J10: 1 | K10: =+EDATE(K9,1) -> 2025-01-02 | L10: =IF($C$15>=$F10,K10-K9,0) -> 31 | M10: =IF(OR(F10>$C$15, F10=0),0, 1*(1/(1+$C$30)^SUM(OFFSET($L$8, IF(F10=0, 1, 0), 0):L10)))*J10 -> 0.9404784274 | N10: =IF(N9-O9<0.000000001,0,N9-O9) -> 12815.98 | O10: 85.22 | P10: =ROUND(N10*((1+$C$12)^(L10/30)-1),2) -> 348.03 | Q10: 0 | R10: 433.25 | S10: 10 | T10: 443.25 | U10: 0 | V10: 0 | W10: 0 | X10: 0 | Y10: 443.25 | AA10: 2 | AB10: -443.25
B11: TEA (Anual): | C11: =+SIMULADOR_!G17 -> 0.365 | E11: 4 | F11: 3 | G11: =IF($F11=0,DAY(K11),IF($C$15>=$F11,$C$18,0)) -> 2 | H11: 2 | I11: 2025 | J11: 1 | K11: 2025-02-02 | L11: 31 | M11: =IF(OR(F11>$C$15, F11=0),0, 1*(1/(1+$C$30)^SUM(OFFSET($L$8, IF(F11=0, 1, 0), 0):L11)))*J11 -> 0.9156139808 | N11: =IF(N10-O10<0.000000001,0,N10-O10) -> 12730.76 | O11: 87.53 | P11: 345.72 | Q11: 0 | R11: 433.25 | S11: 10 | T11: 443.25 | U11: 0 | V11: 0 | W11: 0 | X11: 0 | Y11: 443.25 | AA11: 3 | AB11: -443.25
B12: Tasa Préstamo (Mensual): | C12: =+(1+C11)^(0.0833333333333333)-1 -> 0.02626863065 | E12: 4 | F12: 4 | G12: 2 | H12: 3 | I12: 2025 | J12: 1 | K12: 2025-03-02 | L12: 28 | M12: =IF(OR(F12>$C$15, F12=0),0, 1*(1/(1+$C$30)^SUM(OFFSET($L$8, IF(F12=0, 1, 0), 0):L12)))*J12 -> 0.8937212785 | N12: 12643.23 | O12: 123.54 | P12: 309.71 | Q12: 0 | R12: 433.25 | S12: 10 | T12: 443.25 | U12: 0 | V12: 0 | W12: 0 | X12: 0 | Y12: 443.25 | AA12: 4 | AB12: -443.25
B13: Tasa Préstamo (Diaria): | C13: =+(1+C12)^(0.0333333333333333)-1 -> 0.0008646914876 | E13: 6 | F13: 5 | G13: 2 | H13: 4 | I13: 2025 | J13: 1 | K13: 2025-04-02 | L13: 31 | M13: =IF(OR(F13>$C$15, F13=0),0, 1*(1/(1+$C$30)^SUM(OFFSET($L$8, IF(F13=0, 1, 0), 0):L13)))*J13 -> 0.8700930013 | N13: 12519.69 | O13: 93.26 | P13: 339.99 | Q13: 0 | R13: 433.25 | S13: 10 | T13: 443.25 | U13: 0 | V13: 0 | W13: 0 | X13: 0 | Y13: 443.25 | AA13: 5 | AB13: -443.25
E14: 7 | F14: 6 | G14: 2 | H14: 5 | I14: 2025 | J14: 1 | K14: 2025-05-02 | L14: 30 | M14: =IF(OR(F14>$C$15, F14=0),0, 1*(1/(1+$C$30)^SUM(OFFSET($L$8, IF(F14=0, 1, 0), 0):L14)))*J14 -> 0.8478218814 | N14: 12426.43 | O14: 106.82 | P14: 326.43 | Q14: 0 | R14: 433.25 | S14: 10 | T14: 443.25 | U14: 0 | V14: 0 | W14: 0 | X14: 0 | Y14: 443.25 | AA14: 6 | AB14: -443.25
B15: No. Cuotas: | C15: =+SIMULADOR_!G15 -> 60 | E15: 8 | F15: 7 | G15: 2 | H15: 6 | I15: 2025 | J15: 1 | K15: 2025-06-02 | L15: 31 | M15: =IF(OR(F15>$C$15, F15=0),0, 1*(1/(1+$C$30)^SUM(OFFSET($L$8, IF(F15=0, 1, 0), 0):L15)))*J15 -> 0.8254070963 | N15: 12319.61 | O15: 98.7 | P15: 334.55 | Q15: 0 | R15: 433.25 | S15: 10 | T15: 443.25 | U15: 0 | V15: 0 | W15: 0 | X15: 0 | Y15: 443.25 | AA15: 7 | AB15: -443.25
B16: Periodo de Gracia | C16: =+SIMULADOR_!G23 -> 0 | E16: 9 | F16: 8 | G16: 2 | H16: 7 | I16: 2025 | J16: 1 | K16: 2025-07-02 | L16: 30 | M16: =IF(OR(F16>$C$15, F16=0),0, 1*(1/(1+$C$30)^SUM(OFFSET($L$8, IF(F16=0, 1, 0), 0):L16)))*J16 -> 0.8042797681 | N16: 12220.91 | O16: 112.22 | P16: 321.03 | Q16: 0 | R16: 433.25 | S16: 10 | T16: 443.25 | U16: 0 | V16: 0 | W16: 0 | X16: 0 | Y16: 443.25 | AA16: 8 | AB16: -443.25
B17: Fecha de compra: | C17: =+SIMULADOR_!G11 -> 2024-10-23 | E17: 10 | F17: 9 | G17: 2 | H17: 8 | I17: 2025 | J17: 1 | K17: 2025-08-02 | L17: 31 | M17: =IF(OR(F17>$C$15, F17=0),0, 1*(1/(1+$C$30)^SUM(OFFSET($L$8, IF(F17=0, 1, 0), 0):L17)))*J17 -> 0.783016153 | N17: 12108.69 | O17: 104.43 | P17: 328.82 | Q17: 0 | R17: 433.25 | S17: 10 | T17: 443.25 | U17: 0 | V17: 0 | W17: 0 | X17: 0 | Y17: 443.25 | AA17: 9 | AB17: -443.25
B18: Fecha de pago: | C18: =+SIMULADOR_!G19 -> 2 | E18: 11 | F18: 10 | G18: 2 | H18: 9 | I18: 2025 | J18: 1 | K18: 2025-09-02 | L18: 31 | M18: =IF(OR(F18>$C$15, F18=0),0, 1*(1/(1+$C$30)^SUM(OFFSET($L$8, IF(F18=0, 1, 0), 0):L18)))*J18 -> 0.762314707 | N18: 12004.26 | O18: 107.26 | P18: 325.99 | Q18: 0 | R18: 433.25 | S18: 10 | T18: 443.25 | U18: 0 | V18: 0 | W18: 0 | X18: 0 | Y18: 443.25 | AA18: 10 | AB18: -443.25
B19: Fecha de pago 1 cuota: | C19: =+IF(C16=0,IF(VALUE(DATE(YEAR(C17),MONTH(C17)+1,C18)-C17)<30,DATE(YEAR(C17),MONTH(C17)+2,C18),DATE(YEAR(C17),MONTH(C17)+1,C18)),IF(VALUE(DATE(YEAR(C17),MONTH(C17)+1,C18)-C17)<30,DATE(YEAR(C17),MONTH(C17)+2+C16,C18),DATE(YEAR(C17),MONTH(C17)+1+C16,C18))) -> 2024-12-02 | E19: 12 | F19: 11 | G19: 2 | H19: 10 | I19: 2025 | J19: 1 | K19: 2025-10-02 | L19: 30 | M19: =IF(OR(F19>$C$15, F19=0),0, 1*(1/(1+$C$30)^SUM(OFFSET($L$8, IF(F19=0, 1, 0), 0):L19)))*J19 -> 0.7428023076 | N19: 11897 | O19: 120.73 | P19: 312.52 | Q19: 0 | R19: 433.25 | S19: 10 | T19: 443.25 | U19: 0 | V19: 0 | W19: 0 | X19: 0 | Y19: 443.25 | AA19: 11 | AB19: -443.25
B20: =+$C$19-$C$21 -> 40 | C20: =+DATE(YEAR(C17),MONTH(C17)+1,C18) -> 2024-11-02 | E20: 13 | F20: 12 | G20: 2 | H20: 11 | I20: 2025 | J20: 1 | K20: 2025-11-02 | L20: 31 | M20: =IF(OR(F20>$C$15, F20=0),0, 1*(1/(1+$C$30)^SUM(OFFSET($L$8, IF(F20=0, 1, 0), 0):L20)))*J20 -> 0.7231640386 | N20: 11776.27 | O20: 113.45 | P20: 319.8 | Q20: 0 | R20: 433.25 | S20: 10 | T20: 443.25 | U20: 0 | V20: 0 | W20: 0 | X20: 0 | Y20: 443.25 | AA20: 12 | AB20: -443.25
C21: =+C17+30*$C$16 -> 2024-10-23 | E21: 14 | F21: 13 | G21: 2 | H21: 12 | I21: 2025 | J21: 1 | K21: 2025-12-02 | L21: 30 | M21: =IF(OR(F21>$C$15, F21=0),0, 1*(1/(1+$C$30)^SUM(OFFSET($L$8, IF(F21=0, 1, 0), 0):L21)))*J21 -> 0.7046537495 | N21: 11662.82 | O21: 126.88 | P21: 306.37 | Q21: 0 | R21: 433.25 | S21: 10 | T21: 443.25 | U21: 0 | V21: 0 | W21: 0 | X21: 0 | Y21: 443.25 | AA21: 13 | AB21: -443.25
B22: Plan de Protección | C22: NO | E22: 15 | F22: 14 | G22: 2 | H22: 1 | I22: 2026 | J22: 1 | K22: 2026-01-02 | L22: 31 | M22: =IF(OR(F22>$C$15, F22=0),0, 1*(1/(1+$C$30)^SUM(OFFSET($L$8, IF(F22=0, 1, 0), 0):L22)))*J22 -> 0.6860240553 | N22: 11535.94 | O22: 119.98 | P22: 313.27 | Q22: 0 | R22: 433.25 | S22: 10 | T22: 443.25 | U22: 0 | V22: 0 | W22: 0 | X22: 0 | Y22: 443.25 | AA22: 14 | AB22: -443.25
B23: Costo Anual: | E23: 16 | F23: 15 | G23: 2 | H23: 2 | I23: 2026 | J23: 1 | K23: 2026-02-02 | L23: 31 | M23: =IF(OR(F23>$C$15, F23=0),0, 1*(1/(1+$C$30)^SUM(OFFSET($L$8, IF(F23=0, 1, 0), 0):L23)))*J23 -> 0.6678868945 | N23: 11415.96 | O23: 123.24 | P23: 310.01 | Q23: 0 | R23: 433.25 | S23: 10 | T23: 443.25 | U23: 0 | V23: 0 | W23: 0 | X23: 0 | Y23: 443.25 | AA23: 15 | AB23: -443.25
B24: Costo Mensual: | C24: =+SIMULADOR_!G27 -> 0 | E24: 17 | F24: 16 | G24: 2 | H24: 3 | I24: 2026 | J24: 1 | K24: 2026-03-02 | L24: 28 | M24: =IF(OR(F24>$C$15, F24=0),0, 1*(1/(1+$C$30)^SUM(OFFSET($L$8, IF(F24=0, 1, 0), 0):L24)))*J24 -> 0.6519174475 | N24: 11292.72 | O24: 156.62 | P24: 276.63 | Q24: 0 | R24: 433.25 | S24: 10 | T24: 443.25 | U24: 0 | V24: 0 | W24: 0 | X24: 0 | Y24: 443.25 | AA24: 16 | AB24: -443.25
B25: *SÓLO MODIFICA EL SPEECH, NO MODIFICA EL CRONOGRAMA | E25: 18 | F25: 17 | G25: 2 | H25: 4 | I25: 2026 | J25: 1 | K25: 2026-04-02 | L25: 31 | M25: =IF(OR(F25>$C$15, F25=0),0, 1*(1/(1+$C$30)^SUM(OFFSET($L$8, IF(F25=0, 1, 0), 0):L25)))*J25 -> 0.634682 | N25: 11136.1 | O25: 130.84 | P25: 302.41 | Q25: 0 | R25: 433.25 | S25: 10 | T25: 443.25 | U25: 0 | V25: 0 | W25: 0 | X25: 0 | Y25: 443.25 | AA25: 17 | AB25: -443.25
E26: 19 | F26: 18 | G26: 2 | H26: 5 | I26: 2026 | J26: 1 | K26: 2026-05-02 | L26: 30 | M26: =IF(OR(F26>$C$15, F26=0),0, 1*(1/(1+$C$30)^SUM(OFFSET($L$8, IF(F26=0, 1, 0), 0):L26)))*J26 -> 0.6184365195 | N26: 11005.26 | O26: 144.16 | P26: 289.09 | Q26: 0 | R26: 433.25 | S26: 10 | T26: 443.25 | U26: 0 | V26: 0 | W26: 0 | X26: 0 | Y26: 443.25 | AA26: 18 | AB26: -443.25
B27: Costo Diario | C27: =+C24/30 -> 0 | E27: 20 | F27: 19 | G27: 2 | H27: 6 | I27: 2026 | J27: 1 | K27: 2026-06-02 | L27: 31 | M27: =IF(OR(F27>$C$15, F27=0),0, 1*(1/(1+$C$30)^SUM(OFFSET($L$8, IF(F27=0, 1, 0), 0):L27)))*J27 -> 0.6020862435 | N27: =IF(N26-O26<0.0000001,0,N26-O26) -> 10861.1 | O27: 138.31 | P27: 294.94 | Q27: 0 | R27: 433.25 | S27: 10 | T27: =IF(F27=0,0,O27+P27+Q27+S27) -> 443.25 | U27: 0 | V27: 0 | W27: 0 | X27: 0 | Y27: 443.25 | AA27: 19 | AB27: =IF(T27=0, "", -T27) -> -443.25
E28: 21 | F28: 20 | G28: 2 | H28: 7 | I28: 2026 | J28: 1 | K28: 2026-07-02 | L28: 30 | M28: =IF(OR(F28>$C$15, F28=0),0, 1*(1/(1+$C$30)^SUM(OFFSET($L$8, IF(F28=0, 1, 0), 0):L28)))*J28 -> 0.5866750922 | N28: 10722.79 | O28: 151.58 | P28: 281.67 | Q28: 0 | R28: 433.25 | S28: 10 | T28: 443.25 | U28: 0 | V28: 0 | W28: 0 | X28: 0 | Y28: 443.25 | AA28: 20 | AB28: -443.25
B29: Tasa Préstamo (Mensual): | C29: =+C12+C24 -> 0.02626863065 | E29: 22 | F29: 21 | G29: 2 | H29: 8 | I29: 2026 | J29: 1 | K29: 2026-08-02 | L29: 31 | M29: =IF(OR(F29>$C$15, F29=0),0, 1*(1/(1+$C$30)^SUM(OFFSET($L$8, IF(F29=0, 1, 0), 0):L29)))*J29 -> 0.5711645275 | N29: 10571.21 | O29: 146.18 | P29: 287.07 | Q29: 0 | R29: 433.25 | S29: 10 | T29: 443.25 | U29: 0 | V29: 0 | W29: 0 | X29: 0 | Y29: 443.25 | AA29: 21 | AB29: -443.25 | AD29: =+O27-N27 -> -10722.79
B30: Tasa Préstamo (Diaria): | C30: =+(1+C29)^(0.0333333333333333)-1 -> 0.0008646914876 | E30: 23 | F30: 22 | G30: 2 | H30: 9 | I30: 2026 | J30: 1 | K30: 2026-09-02 | L30: 31 | M30: =IF(OR(F30>$C$15, F30=0),0, 1*(1/(1+$C$30)^SUM(OFFSET($L$8, IF(F30=0, 1, 0), 0):L30)))*J30 -> 0.5560640324 | N30: 10425.03 | O30: 150.15 | P30: 283.1 | Q30: 0 | R30: 433.25 | S30: 10 | T30: 443.25 | U30: 0 | V30: 0 | W30: 0 | X30: 0 | Y30: 443.25 | AA30: 22 | AB30: -443.25
E31: 24 | F31: 23 | G31: 2 | H31: 10 | I31: 2026 | J31: 1 | K31: 2026-10-02 | L31: 30 | M31: =IF(OR(F31>$C$15, F31=0),0, 1*(1/(1+$C$30)^SUM(OFFSET($L$8, IF(F31=0, 1, 0), 0):L31)))*J31 -> 0.5418308772 | N31: 10274.88 | O31: 163.34 | P31: 269.91 | Q31: 0 | R31: 433.25 | S31: 10 | T31: 443.25 | U31: 0 | V31: 0 | W31: 0 | X31: 0 | Y31: 443.25 | AA31: 23 | AB31: -443.25
B32: =+IF(C16=0,IF(VALUE(DATE(YEAR(C17),MONTH(C17)+1,C18)-C17)<30,DATE(YEAR(C17),MONTH(C17)+2,C18),DATE(YEAR(C17),MONTH(C17)+1,C18)),DATE(YEAR(C17),MONTH(C17)+C16,C18)) -> 2024-12-02 | E32: 25 | F32: 24 | G32: 2 | H32: 11 | I32: 2026 | J32: 1 | K32: 2026-11-02 | L32: 31 | M32: =IF(OR(F32>$C$15, F32=0),0, 1*(1/(1+$C$30)^SUM(OFFSET($L$8, IF(F32=0, 1, 0), 0):L32)))*J32 -> 0.5275059076 | N32: 10111.54 | O32: 158.66 | P32: 274.59 | Q32: 0 | R32: 433.25 | S32: 10 | T32: 443.25 | U32: 0 | V32: 0 | W32: 0 | X32: 0 | Y32: 443.25 | AA32: 24 | AB32: -443.25
E33: 26 | F33: 25 | G33: 2 | H33: 12 | I33: 2026 | J33: 1 | K33: 2026-12-02 | L33: 30 | M33: =IF(OR(F33>$C$15, F33=0),0, 1*(1/(1+$C$30)^SUM(OFFSET($L$8, IF(F33=0, 1, 0), 0):L33)))*J33 -> 0.5140037334 | N33: 9952.88 | O33: 171.8 | P33: 261.45 | Q33: 0 | R33: 433.25 | S33: 10 | T33: 443.25 | U33: 0 | V33: 0 | W33: 0 | X33: 0 | Y33: 443.25 | AA33: 25 | AB33: -443.25
E34: 27 | F34: 26 | G34: 2 | H34: 1 | I34: 2027 | J34: 1 | K34: 2027-01-02 | L34: 31 | M34: =IF(OR(F34>$C$15, F34=0),0, 1*(1/(1+$C$30)^SUM(OFFSET($L$8, IF(F34=0, 1, 0), 0):L34)))*J34 -> 0.5004144601 | N34: 9781.08 | O34: 167.63 | P34: 265.62 | Q34: 0 | R34: 433.25 | S34: 10 | T34: 443.25 | U34: 0 | V34: 0 | W34: 0 | X34: 0 | Y34: 443.25 | AA34: 26 | AB34: -443.25
B35: TIPO DE CUOTA | C35: =+IF(SIMULADOR_!G21="ORDINARIA", 1,2) -> 1 | E35: 28 | F35: 27 | G35: 2 | H35: 2 | I35: 2027 | J35: 1 | K35: 2027-02-02 | L35: 31 | M35: =IF(OR(F35>$C$15, F35=0),0, 1*(1/(1+$C$30)^SUM(OFFSET($L$8, IF(F35=0, 1, 0), 0):L35)))*J35 -> 0.4871844611 | N35: 9613.45 | O35: 172.19 | P35: 261.06 | Q35: 0 | R35: 433.25 | S35: 10 | T35: 443.25 | U35: 0 | V35: 0 | W35: 0 | X35: 0 | Y35: 443.25 | AA35: 27 | AB35: -443.25
E36: 29 | F36: 28 | G36: 2 | H36: 3 | I36: 2027 | J36: 1 | K36: 2027-03-02 | L36: 28 | M36: =IF(OR(F36>$C$15, F36=0),0, 1*(1/(1+$C$30)^SUM(OFFSET($L$8, IF(F36=0, 1, 0), 0):L36)))*J36 -> 0.4755356827 | N36: 9441.26 | O36: 201.98 | P36: 231.27 | Q36: 0 | R36: 433.25 | S36: 10 | T36: 443.25 | U36: 0 | V36: 0 | W36: 0 | X36: 0 | Y36: 443.25 | AA36: 28 | AB36: -443.25
B37: MONEDA | C37: =+SIMULADOR_!G9 -> SOLES | E37: 30 | F37: 29 | G37: 2 | H37: 4 | I37: 2027 | J37: 1 | K37: 2027-04-02 | L37: 31 | M37: =IF(OR(F37>$C$15, F37=0),0, 1*(1/(1+$C$30)^SUM(OFFSET($L$8, IF(F37=0, 1, 0), 0):L37)))*J37 -> 0.4629634309 | N37: 9239.28 | O37: 182.35 | P37: 250.9 | Q37: 0 | R37: 433.25 | S37: 10 | T37: 443.25 | U37: 0 | V37: 0 | W37: 0 | X37: 0 | Y37: 443.25 | AA37: 29 | AB37: -443.25
E38: 31 | F38: 30 | G38: 2 | H38: 5 | I38: 2027 | J38: 1 | K38: 2027-05-02 | L38: 30 | M38: =IF(OR(F38>$C$15, F38=0),0, 1*(1/(1+$C$30)^SUM(OFFSET($L$8, IF(F38=0, 1, 0), 0):L38)))*J38 -> 0.4511133022 | N38: 9056.93 | O38: 195.34 | P38: 237.91 | Q38: 0 | R38: 433.25 | S38: 10 | T38: 443.25 | U38: 0 | V38: 0 | W38: 0 | X38: 0 | Y38: 443.25 | AA38: 30 | AB38: -443.25
B39: COMISIÓN | C39: =+SIMULADOR_!G35 -> 10 | E39: 32 | F39: 31 | G39: 2 | H39: 6 | I39: 2027 | J39: 1 | K39: 2027-06-02 | L39: 31 | M39: =IF(OR(F39>$C$15, F39=0),0, 1*(1/(1+$C$30)^SUM(OFFSET($L$8, IF(F39=0, 1, 0), 0):L39)))*J39 -> 0.4391867314 | N39: 8861.59 | O39: 192.6 | P39: 240.65 | Q39: 0 | R39: 433.25 | S39: 10 | T39: 443.25 | AA39: 31 | AB39: -443.25
E40: 33 | F40: 32 | G40: 2 | H40: 7 | I40: 2027 | J40: 1 | K40: 2027-07-02 | L40: 30 | M40: =IF(OR(F40>$C$15, F40=0),0, 1*(1/(1+$C$30)^SUM(OFFSET($L$8, IF(F40=0, 1, 0), 0):L40)))*J40 -> 0.427945197 | N40: 8668.99 | O40: 205.53 | P40: 227.72 | Q40: 0 | R40: 433.25 | S40: 10 | T40: 443.25 | AA40: 32 | AB40: -443.25
E41: 34 | F41: 33 | G41: 2 | H41: 8 | I41: 2027 | J41: 1 | K41: 2027-08-02 | L41: 31 | M41: =IF(OR(F41>$C$15, F41=0),0, 1*(1/(1+$C$30)^SUM(OFFSET($L$8, IF(F41=0, 1, 0), 0):L41)))*J41 -> 0.4166311465 | N41: 8463.46 | O41: 203.42 | P41: 229.83 | Q41: 0 | R41: 433.25 | S41: 10 | T41: 443.25 | AA41: 33 | AB41: -443.25
B42: Filtro | C42: =+C7 -> 3216.315789 | E42: 35 | F42: 34 | G42: 2 | H42: 9 | I42: 2027 | J42: 1 | K42: 2027-09-02 | L42: 31 | M42: =IF(OR(F42>$C$15, F42=0),0, 1*(1/(1+$C$30)^SUM(OFFSET($L$8, IF(F42=0, 1, 0), 0):L42)))*J42 -> 0.4056162177 | N42: 8260.04 | O42: 208.94 | P42: 224.31 | Q42: 0 | R42: 433.25 | S42: 10 | T42: 443.25 | AA42: 34 | AB42: -443.25
E43: 36 | F43: 35 | G43: 2 | H43: 10 | I43: 2027 | J43: 1 | K43: 2027-10-02 | L43: 30 | M43: =IF(OR(F43>$C$15, F43=0),0, 1*(1/(1+$C$30)^SUM(OFFSET($L$8, IF(F43=0, 1, 0), 0):L43)))*J43 -> 0.3952339627 | N43: 8051.1 | O43: 221.76 | P43: 211.49 | Q43: 0 | R43: 433.25 | S43: 10 | T43: 443.25 | AA43: 35 | AB43: -443.25
E44: 37 | F44: 36 | G44: 2 | H44: 11 | I44: 2027 | J44: 1 | K44: 2027-11-02 | L44: 31 | M44: =IF(OR(F44>$C$15, F44=0),0, 1*(1/(1+$C$30)^SUM(OFFSET($L$8, IF(F44=0, 1, 0), 0):L44)))*J44 -> 0.3847847345 | N44: 7829.34 | O44: 220.64 | P44: 212.61 | Q44: 0 | R44: 433.25 | S44: 10 | T44: 443.25 | AA44: 36 | AB44: -443.25
E45: 38 | F45: 37 | G45: 2 | H45: 12 | I45: 2027 | J45: 1 | K45: 2027-12-02 | L45: 30 | M45: =IF(OR(F45>$C$15, F45=0),0, 1*(1/(1+$C$30)^SUM(OFFSET($L$8, IF(F45=0, 1, 0), 0):L45)))*J45 -> 0.3749356874 | N45: 7608.7 | O45: 233.38 | P45: 199.87 | Q45: 0 | R45: 433.25 | S45: 10 | T45: 443.25 | AA45: 37 | AB45: -443.25
E46: 39 | F46: 38 | G46: 2 | H46: 1 | I46: 2028 | J46: 1 | K46: 2028-01-02 | L46: 31 | M46: =IF(OR(F46>$C$15, F46=0),0, 1*(1/(1+$C$30)^SUM(OFFSET($L$8, IF(F46=0, 1, 0), 0):L46)))*J46 -> 0.3650231066 | N46: 7375.32 | O46: 232.97 | P46: 200.28 | Q46: 0 | R46: 433.25 | S46: 10 | T46: 443.25 | AA46: 38 | AB46: -443.25
E47: 40 | F47: 39 | G47: 2 | H47: 2 | I47: 2028 | J47: 1 | K47: 2028-02-02 | L47: 31 | M47: =IF(OR(F47>$C$15, F47=0),0, 1*(1/(1+$C$30)^SUM(OFFSET($L$8, IF(F47=0, 1, 0), 0):L47)))*J47 -> 0.3553725955 | N47: 7142.35 | O47: 239.29 | P47: 193.96 | Q47: 0 | R47: 433.25 | S47: 10 | T47: 443.25 | AA47: 39 | AB47: -443.25
E48: 41 | F48: 40 | G48: 2 | H48: 3 | I48: 2028 | J48: 1 | K48: 2028-03-02 | L48: 29 | M48: =IF(OR(F48>$C$15, F48=0),0, 1*(1/(1+$C$30)^SUM(OFFSET($L$8, IF(F48=0, 1, 0), 0):L48)))*J48 -> 0.3465758112 | N48: 6903.06 | O48: 258.04 | P48: 175.21 | Q48: 0 | R48: 433.25 | S48: 10 | T48: 443.25 | AA48: 40 | AB48: -443.25
E49: 42 | F49: 41 | G49: 2 | H49: 4 | I49: 2028 | J49: 1 | K49: 2028-04-02 | L49: 31 | M49: =IF(OR(F49>$C$15, F49=0),0, 1*(1/(1+$C$30)^SUM(OFFSET($L$8, IF(F49=0, 1, 0), 0):L49)))*J49 -> 0.3374130111 | N49: 6645.02 | O49: 252.8 | P49: 180.45 | Q49: 0 | R49: 433.25 | S49: 10 | T49: 443.25 | AA49: 41 | AB49: -443.25
E50: 43 | F50: 42 | G50: 2 | H50: 5 | I50: 2028 | J50: 1 | K50: 2028-05-02 | L50: 30 | M50: =IF(OR(F50>$C$15, F50=0),0, 1*(1/(1+$C$30)^SUM(OFFSET($L$8, IF(F50=0, 1, 0), 0):L50)))*J50 -> 0.3287765026 | N50: 6392.22 | O50: 265.34 | P50: 167.91 | Q50: 0 | R50: 433.25 | S50: 10 | T50: 443.25 | AA50: 42 | AB50: -443.25
E51: 44 | F51: 43 | G51: 2 | H51: 6 | I51: 2028 | J51: 1 | K51: 2028-06-02 | L51: 31 | M51: =IF(OR(F51>$C$15, F51=0),0, 1*(1/(1+$C$30)^SUM(OFFSET($L$8, IF(F51=0, 1, 0), 0):L51)))*J51 -> 0.3200842822 | N51: 6126.88 | O51: 266.87 | P51: 166.38 | Q51: 0 | R51: 433.25 | S51: 10 | T51: 443.25 | AA51: 43 | AB51: -443.25
E52: 45 | F52: 44 | G52: 2 | H52: 7 | I52: 2028 | J52: 1 | K52: 2028-07-02 | L52: 30 | M52: =IF(OR(F52>$C$15, F52=0),0, 1*(1/(1+$C$30)^SUM(OFFSET($L$8, IF(F52=0, 1, 0), 0):L52)))*J52 -> 0.3118913242 | N52: 5860.01 | O52: 279.32 | P52: 153.93 | Q52: 0 | R52: 433.25 | S52: 10 | T52: 443.25 | AA52: 44 | AB52: -443.25
E53: 46 | F53: 45 | G53: 2 | H53: 8 | I53: 2028 | J53: 1 | K53: 2028-08-02 | L53: 31 | M53: =IF(OR(F53>$C$15, F53=0),0, 1*(1/(1+$C$30)^SUM(OFFSET($L$8, IF(F53=0, 1, 0), 0):L53)))*J53 -> 0.3036455155 | N53: 5580.69 | O53: 281.7 | P53: 151.55 | Q53: 0 | R53: 433.25 | S53: 10 | T53: 443.25 | AA53: 45 | AB53: -443.25
E54: 47 | F54: 46 | G54: 2 | H54: 9 | I54: 2028 | J54: 1 | K54: 2028-09-02 | L54: 31 | M54: =IF(OR(F54>$C$15, F54=0),0, 1*(1/(1+$C$30)^SUM(OFFSET($L$8, IF(F54=0, 1, 0), 0):L54)))*J54 -> 0.2956177102 | N54: 5298.99 | O54: 289.35 | P54: 143.9 | Q54: 0 | R54: 433.25 | S54: 10 | T54: 443.25 | AA54: 46 | AB54: -443.25
E55: 48 | F55: 47 | G55: 2 | H55: 10 | I55: 2028 | J55: 1 | K55: 2028-10-02 | L55: 30 | M55: =IF(OR(F55>$C$15, F55=0),0, 1*(1/(1+$C$30)^SUM(OFFSET($L$8, IF(F55=0, 1, 0), 0):L55)))*J55 -> 0.2880510048 | N55: 5009.64 | O55: 301.65 | P55: 131.6 | Q55: 0 | R55: 433.25 | S55: 10 | T55: 443.25 | AA55: 47 | AB55: -443.25
E56: 49 | F56: 48 | G56: 2 | H56: 11 | I56: 2028 | J56: 1 | K56: 2028-11-02 | L56: 31 | M56: =IF(OR(F56>$C$15, F56=0),0, 1*(1/(1+$C$30)^SUM(OFFSET($L$8, IF(F56=0, 1, 0), 0):L56)))*J56 -> 0.2804354885 | N56: 4707.99 | O56: 305.4 | P56: 127.85 | Q56: 0 | R56: 433.25 | S56: 10 | T56: 443.25 | AA56: 48 | AB56: -443.25
E57: 50 | F57: 49 | G57: 2 | H57: 12 | I57: 2028 | J57: 1 | K57: 2028-12-02 | L57: 30 | M57: =IF(OR(F57>$C$15, F57=0),0, 1*(1/(1+$C$30)^SUM(OFFSET($L$8, IF(F57=0, 1, 0), 0):L57)))*J57 -> 0.273257391 | N57: 4402.59 | O57: 317.6 | P57: 115.65 | Q57: 0 | R57: 433.25 | S57: 10 | T57: 443.25 | AA57: 49 | AB57: -443.25
E58: 51 | F58: 50 | G58: 2 | H58: 1 | I58: 2029 | J58: 1 | K58: 2029-01-02 | L58: 31 | M58: =IF(OR(F58>$C$15, F58=0),0, 1*(1/(1+$C$30)^SUM(OFFSET($L$8, IF(F58=0, 1, 0), 0):L58)))*J58 -> 0.2660329894 | N58: 4084.99 | O58: 322.32 | P58: 110.93 | Q58: 0 | R58: 433.25 | S58: 10 | T58: 443.25 | AA58: 50 | AB58: -443.25
E59: 52 | F59: 51 | G59: 2 | H59: 2 | I59: 2029 | J59: 1 | K59: 2029-02-02 | L59: 31 | M59: =IF(OR(F59>$C$15, F59=0),0, 1*(1/(1+$C$30)^SUM(OFFSET($L$8, IF(F59=0, 1, 0), 0):L59)))*J59 -> 0.2589995872 | N59: 3762.67 | O59: 331.07 | P59: 102.18 | Q59: 0 | R59: 433.25 | S59: 10 | T59: 443.25 | AA59: 51 | AB59: -443.25
E60: 53 | F60: 52 | G60: 2 | H60: 3 | I60: 2029 | J60: 1 | K60: 2029-03-02 | L60: 28 | M60: =IF(OR(F60>$C$15, F60=0),0, 1*(1/(1+$C$30)^SUM(OFFSET($L$8, IF(F60=0, 1, 0), 0):L60)))*J60 -> 0.2528068019 | N60: 3431.6 | O60: 349.19 | P60: 84.06 | Q60: 0 | R60: 433.25 | S60: 10 | T60: 443.25 | AA60: 52 | AB60: -443.25
E61: 54 | F61: 53 | G61: 2 | H61: 4 | I61: 2029 | J61: 1 | K61: 2029-04-02 | L61: 31 | M61: =IF(OR(F61>$C$15, F61=0),0, 1*(1/(1+$C$30)^SUM(OFFSET($L$8, IF(F61=0, 1, 0), 0):L61)))*J61 -> 0.2461230747 | N61: 3082.41 | O61: 349.54 | P61: 83.71 | Q61: 0 | R61: 433.25 | S61: 10 | T61: 443.25 | AA61: 53 | AB61: -443.25
E62: 55 | F62: 54 | G62: 2 | H62: 5 | I62: 2029 | J62: 1 | K62: 2029-05-02 | L62: 30 | M62: =IF(OR(F62>$C$15, F62=0),0, 1*(1/(1+$C$30)^SUM(OFFSET($L$8, IF(F62=0, 1, 0), 0):L62)))*J62 -> 0.2398232464 | N62: 2732.87 | O62: 361.46 | P62: 71.79 | Q62: 0 | R62: 433.25 | S62: 10 | T62: 443.25 | AA62: 54 | AB62: -443.25
E63: 56 | F63: 55 | G63: 2 | H63: 6 | I63: 2029 | J63: 1 | K63: 2029-06-02 | L63: 31 | M63: =IF(OR(F63>$C$15, F63=0),0, 1*(1/(1+$C$30)^SUM(OFFSET($L$8, IF(F63=0, 1, 0), 0):L63)))*J63 -> 0.2334827795 | N63: 2371.41 | O63: 368.85 | P63: 64.4 | Q63: 0 | R63: 433.25 | S63: 10 | T63: 443.25 | AA63: 55 | AB63: -443.25
E64: 57 | F64: 56 | G64: 2 | H64: 7 | I64: 2029 | J64: 1 | K64: 2029-07-02 | L64: 30 | M64: =IF(OR(F64>$C$15, F64=0),0, 1*(1/(1+$C$30)^SUM(OFFSET($L$8, IF(F64=0, 1, 0), 0):L64)))*J64 -> 0.2275064954 | N64: 2002.56 | O64: 380.65 | P64: 52.6 | Q64: 0 | R64: 433.25 | S64: 10 | T64: 443.25 | AA64: 56 | AB64: -443.25
E65: 58 | F65: 57 | G65: 2 | H65: 8 | I65: 2029 | J65: 1 | K65: 2029-08-02 | L65: 31 | M65: =IF(OR(F65>$C$15, F65=0),0, 1*(1/(1+$C$30)^SUM(OFFSET($L$8, IF(F65=0, 1, 0), 0):L65)))*J65 -> 0.2214916599 | N65: 1621.91 | O65: 389.21 | P65: 44.04 | Q65: 0 | R65: 433.25 | S65: 10 | T65: 443.25 | AA65: 57 | AB65: -443.25
E66: 59 | F66: 58 | G66: 2 | H66: 9 | I66: 2029 | J66: 1 | K66: 2029-09-02 | L66: 31 | M66: =IF(OR(F66>$C$15, F66=0),0, 1*(1/(1+$C$30)^SUM(OFFSET($L$8, IF(F66=0, 1, 0), 0):L66)))*J66 -> 0.215635845 | N66: 1232.7 | O66: 399.77 | P66: 33.48 | Q66: 0 | R66: 433.25 | S66: 10 | T66: 443.25 | AA66: 58 | AB66: -443.25
E67: 60 | F67: 59 | G67: 2 | H67: 10 | I67: 2029 | J67: 1 | K67: 2029-10-02 | L67: 30 | M67: =IF(OR(F67>$C$15, F67=0),0, 1*(1/(1+$C$30)^SUM(OFFSET($L$8, IF(F67=0, 1, 0), 0):L67)))*J67 -> 0.2101163756 | N67: 832.93 | O67: 411.37 | P67: 21.88 | Q67: 0 | R67: 433.25 | S67: 10 | T67: 443.25 | AA67: 59 | AB67: -443.25
E68: 61 | F68: 60 | G68: 2 | H68: 11 | I68: 2029 | J68: 1 | K68: 2029-11-02 | L68: 31 | M68: =IF(OR(F68>$C$15, F68=0),0, 1*(1/(1+$C$30)^SUM(OFFSET($L$8, IF(F68=0, 1, 0), 0):L68)))*J68 -> 0.2045613014 | N68: 421.56 | O68: 421.56 | P68: 11.45 | Q68: 0 | R68: 433.01 | S68: 10 | T68: 443.01 | AA68: 60 | AB68: -443.01
E69: 62 | F69: 61 | G69: 0 | H69: 0 | I69: 0 | J69: 1 | K69: 2029-12-02 | L69: 0 | M69: =IF(OR(F69>$C$15, F69=0),0, 1*(1/(1+$C$30)^SUM(OFFSET($L$8, IF(F69=0, 1, 0), 0):L69)))*J69 -> 0 | N69: 0 | O69: 0 | P69: 0 | Q69: 0 | R69: 0 | S69: 0 | T69: 0
E70: 63 | F70: 62 | G70: 0 | H70: 0 | I70: 0 | J70: 1 | K70: 2030-01-02 | L70: 0 | M70: =IF(OR(F70>$C$15, F70=0),0, 1*(1/(1+$C$30)^SUM(OFFSET($L$8, IF(F70=0, 1, 0), 0):L70)))*J70 -> 0 | N70: 0 | O70: 0 | P70: 0 | Q70: 0 | R70: 0 | S70: 0 | T70: 0
E71: 64 | F71: 63 | G71: 0 | H71: 0 | I71: 0 | J71: 1 | K71: 2030-02-02 | L71: 0 | M71: =IF(OR(F71>$C$15, F71=0),0, 1*(1/(1+$C$30)^SUM(OFFSET($L$8, IF(F71=0, 1, 0), 0):L71)))*J71 -> 0 | N71: 0 | O71: 0 | P71: 0 | Q71: 0 | R71: 0 | S71: 0 | T71: 0
E72: 65 | F72: 64 | G72: 0 | H72: =IF($F72=0,MONTH(K72),IF($F72=1,MONTH($C$19),IF($C$15>=$F72,IF(H71=12,1,H71+1),0))) -> 0 | I72: =IF($F72=0,YEAR(K72),IF($F72=1,YEAR($C$19),IF($C$15>=$F72,IF(H71=12,I71+1,I71),0))) -> 0 | J72: 1 | K72: 2030-03-02 | L72: 0 | M72: =IF(OR(F72>$C$15, F72=0),0, 1*(1/(1+$C$30)^SUM(OFFSET($L$8, IF(F72=0, 1, 0), 0):L72)))*J72 -> 0 | N72: 0 | O72: 0 | P72: 0 | Q72: 0 | R72: 0 | S72: 0 | T72: 0
E73: 66 | F73: =+IF($C$19>K73,0,1+F72) -> 65 | G73: 0 | H73: 0 | I73: 0 | J73: =IF($C$35=2,IF(IF(DAY(K73)<=15,IF(OR(MONTH(K73)=8,MONTH(K73)=1),1,0),IF(OR(MONTH(K73)=7,MONTH(K73)=12),1,0)),2,IF(OR(F73="",F73=0),0,1)),IF(OR(F73="",F73=0),0,1)) -> 1 | K73: 2030-04-02 | L73: 0 | M73: =IF(OR(F73>$C$15, F73=0),0, 1*(1/(1+$C$30)^SUM(OFFSET($L$8, IF(F73=0, 1, 0), 0):L73)))*J73 -> 0 | N73: 0 | O73: =IF(AND(F73>0,F73<$C$15),R73-P73-Q73, IF(AND(F73>0,F73=$C$15), N73, -P73-Q73)) -> 0 | P73: =ROUND(N73*((1+$C$12)^(L73/30)-1),2) -> 0 | Q73: =+N73*((1+$C$27)^(L73)-1) -> 0 | R73: =ROUND(IF(AND(F73>0,F73<$C$15),OFFSET($N$8,IF(F73=0,1,0),0)/SUM($M$8:$M$204),IF(F73=$C$15,N73+P73+Q73,0)),2)*J73 -> 0 | S73: =+IF(OR(F73=0,F73>$C$15),0,IF(F73<=$C$15,$C$39,0)) -> 0 | T73: =IF(F73=0,0,O73+P73+Q73+S73) -> 0 | AA73: =IF(IF(F73=0,"",F73)>$C$15,"",IF(F73=0,"",F73)) ->  | AB73: =IF(T73=0, "", -T73) -> 
E74: 67 | F74: 66 | G74: 0 | H74: 0 | I74: 0 | J74: 1 | K74: =+EDATE(K73,1) -> 2030-05-02 | L74: =IF($C$15>=$F74,K74-K73,0) -> 0 | M74: =IF(OR(F74>$C$15, F74=0),0, 1*(1/(1+$C$30)^SUM(OFFSET($L$8, IF(F74=0, 1, 0), 0):L74)))*J74 -> 0 | N74: =IF(N73-O73<0.000000001,0,N73-O73) -> 0 | O74: 0 | P74: 0 | Q74: 0 | R74: 0 | S74: 0 | T74: 0
E75: 68 | F75: 67 | G75: =IF($F75=0,DAY(K75),IF($C$15>=$F75,$C$18,0)) -> 0 | H75: 0 | I75: 0 | J75: 1 | K75: 2030-06-02 | L75: 0 | M75: =IF(OR(F75>$C$15, F75=0),0, 1*(1/(1+$C$30)^SUM(OFFSET($L$8, IF(F75=0, 1, 0), 0):L75)))*J75 -> 0 | N75: 0 | O75: 0 | P75: 0 | Q75: 0 | R75: 0 | S75: 0 | T75: 0
E76: 69 | F76: 68 | G76: 0 | H76: 0 | I76: 0 | J76: 1 | K76: 2030-07-02 | L76: 0 | M76: =IF(OR(F76>$C$15, F76=0),0, 1*(1/(1+$C$30)^SUM(OFFSET($L$8, IF(F76=0, 1, 0), 0):L76)))*J76 -> 0 | N76: 0 | O76: 0 | P76: 0 | Q76: 0 | R76: 0 | S76: 0 | T76: 0
E77: 70 | F77: 69 | G77: 0 | H77: 0 | I77: 0 | J77: 1 | K77: 2030-08-02 | L77: 0 | M77: =IF(OR(F77>$C$15, F77=0),0, 1*(1/(1+$C$30)^SUM(OFFSET($L$8, IF(F77=0, 1, 0), 0):L77)))*J77 -> 0 | N77: 0 | O77: 0 | P77: 0 | Q77: 0 | R77: 0 | S77: 0 | T77: 0
E78: 71 | F78: 70 | G78: 0 | H78: 0 | I78: 0 | J78: 1 | K78: 2030-09-02 | L78: 0 | M78: =IF(OR(F78>$C$15, F78=0),0, 1*(1/(1+$C$30)^SUM(OFFSET($L$8, IF(F78=0, 1, 0), 0):L78)))*J78 -> 0 | N78: 0 | O78: 0 | P78: 0 | Q78: 0 | R78: 0 | S78: 0 | T78: 0
E79: 72 | F79: 71 | G79: 0 | H79: 0 | I79: 0 | J79: 1 | K79: 2030-10-02 | L79: 0 | M79: =IF(OR(F79>$C$15, F79=0),0, 1*(1/(1+$C$30)^SUM(OFFSET($L$8, IF(F79=0, 1, 0), 0):L79)))*J79 -> 0 | N79: 0 | O79: 0 | P79: 0 | Q79: 0 | R79: 0 | S79: 0 | T79: 0
E80: 73 | F80: 72 | G80: 0 | H80: 0 | I80: 0 | J80: 1 | K80: 2030-11-02 | L80: 0 | M80: =IF(OR(F80>$C$15, F80=0),0, 1*(1/(1+$C$30)^SUM(OFFSET($L$8, IF(F80=0, 1, 0), 0):L80)))*J80 -> 0 | N80: 0 | O80: 0 | P80: 0 | Q80: 0 | R80: 0 | S80: 0 | T80: 0
E81: 74 | F81: 73 | G81: 0 | H81: 0 | I81: 0 | J81: 1 | K81: 2030-12-02 | L81: 0 | M81: =IF(OR(F81>$C$15, F81=0),0, 1*(1/(1+$C$30)^SUM(OFFSET($L$8, IF(F81=0, 1, 0), 0):L81)))*J81 -> 0 | N81: 0 | O81: 0 | P81: 0 | Q81: 0 | R81: 0 | S81: 0 | T81: 0
E82: 75 | F82: 74 | G82: 0 | H82: 0 | I82: 0 | J82: 1 | K82: 2031-01-02 | L82: 0 | M82: =IF(OR(F82>$C$15, F82=0),0, 1*(1/(1+$C$30)^SUM(OFFSET($L$8, IF(F82=0, 1, 0), 0):L82)))*J82 -> 0 | N82: 0 | O82: 0 | P82: 0 | Q82: 0 | R82: 0 | S82: 0 | T82: 0
E83: 76 | F83: 75 | G83: 0 | H83: 0 | I83: 0 | J83: 1 | K83: 2031-02-02 | L83: 0 | M83: =IF(OR(F83>$C$15, F83=0),0, 1*(1/(1+$C$30)^SUM(OFFSET($L$8, IF(F83=0, 1, 0), 0):L83)))*J83 -> 0 | N83: 0 | O83: 0 | P83: 0 | Q83: 0 | R83: 0 | S83: 0 | T83: 0
E84: 77 | F84: 76 | G84: 0 | H84: 0 | I84: 0 | J84: 1 | K84: 2031-03-02 | L84: 0 | M84: =IF(OR(F84>$C$15, F84=0),0, 1*(1/(1+$C$30)^SUM(OFFSET($L$8, IF(F84=0, 1, 0), 0):L84)))*J84 -> 0 | N84: 0 | O84: 0 | P84: 0 | Q84: 0 | R84: 0 | S84: 0 | T84: 0
E85: 78 | F85: 77 | G85: 0 | H85: 0 | I85: 0 | J85: 1 | K85: 2031-04-02 | L85: 0 | M85: =IF(OR(F85>$C$15, F85=0),0, 1*(1/(1+$C$30)^SUM(OFFSET($L$8, IF(F85=0, 1, 0), 0):L85)))*J85 -> 0 | N85: 0 | O85: 0 | P85: 0 | Q85: 0 | R85: 0 | S85: 0 | T85: 0
E86: 79 | F86: 78 | G86: 0 | H86: 0 | I86: 0 | J86: 1 | K86: 2031-05-02 | L86: 0 | M86: =IF(OR(F86>$C$15, F86=0),0, 1*(1/(1+$C$30)^SUM(OFFSET($L$8, IF(F86=0, 1, 0), 0):L86)))*J86 -> 0 | N86: 0 | O86: 0 | P86: 0 | Q86: 0 | R86: 0 | S86: 0 | T86: 0
E87: 80 | F87: 79 | G87: 0 | H87: 0 | I87: 0 | J87: 1 | K87: 2031-06-02 | L87: 0 | M87: =IF(OR(F87>$C$15, F87=0),0, 1*(1/(1+$C$30)^SUM(OFFSET($L$8, IF(F87=0, 1, 0), 0):L87)))*J87 -> 0 | N87: 0 | O87: 0 | P87: 0 | Q87: 0 | R87: 0 | S87: 0 | T87: 0
E88: 81 | F88: 80 | G88: 0 | H88: 0 | I88: 0 | J88: 1 | K88: 2031-07-02 | L88: 0 | M88: =IF(OR(F88>$C$15, F88=0),0, 1*(1/(1+$C$30)^SUM(OFFSET($L$8, IF(F88=0, 1, 0), 0):L88)))*J88 -> 0 | N88: 0 | O88: 0 | P88: 0 | Q88: 0 | R88: 0 | S88: 0 | T88: 0
E89: 82 | F89: 81 | G89: 0 | H89: 0 | I89: 0 | J89: 1 | K89: 2031-08-02 | L89: 0 | M89: =IF(OR(F89>$C$15, F89=0),0, 1*(1/(1+$C$30)^SUM(OFFSET($L$8, IF(F89=0, 1, 0), 0):L89)))*J89 -> 0 | N89: 0 | O89: 0 | P89: 0 | Q89: 0 | R89: 0 | S89: 0 | T89: 0
E90: 83 | F90: 82 | G90: 0 | H90: 0 | I90: 0 | J90: 1 | K90: 2031-09-02 | L90: 0 | M90: =IF(OR(F90>$C$15, F90=0),0, 1*(1/(1+$C$30)^SUM(OFFSET($L$8, IF(F90=0, 1, 0), 0):L90)))*J90 -> 0 | N90: 0 | O90: 0 | P90: 0 | Q90: 0 | R90: 0 | S90: 0 | T90: 0
E91: 84 | F91: 83 | G91: 0 | H91: 0 | I91: 0 | J91: 1 | K91: 2031-10-02 | L91: 0 | M91: =IF(OR(F91>$C$15, F91=0),0, 1*(1/(1+$C$30)^SUM(OFFSET($L$8, IF(F91=0, 1, 0), 0):L91)))*J91 -> 0 | N91: 0 | O91: 0 | P91: 0 | Q91: 0 | R91: 0 | S91: 0 | T91: 0
E92: 85 | F92: 84 | G92: 0 | H92: 0 | I92: 0 | J92: 1 | K92: 2031-11-02 | L92: 0 | M92: =IF(OR(F92>$C$15, F92=0),0, 1*(1/(1+$C$30)^SUM(OFFSET($L$8, IF(F92=0, 1, 0), 0):L92)))*J92 -> 0 | N92: 0 | O92: 0 | P92: 0 | Q92: 0 | R92: 0 | S92: 0 | T92: 0
E93: 86 | F93: 85 | G93: 0 | H93: 0 | I93: 0 | J93: 1 | K93: 2031-12-02 | L93: 0 | M93: =IF(OR(F93>$C$15, F93=0),0, 1*(1/(1+$C$30)^SUM(OFFSET($L$8, IF(F93=0, 1, 0), 0):L93)))*J93 -> 0 | N93: 0 | O93: 0 | P93: 0 | Q93: 0 | R93: 0 | S93: 0 | T93: 0
E94: 87 | F94: 86 | G94: 0 | H94: 0 | I94: 0 | J94: 1 | K94: 2032-01-02 | L94: 0 | M94: =IF(OR(F94>$C$15, F94=0),0, 1*(1/(1+$C$30)^SUM(OFFSET($L$8, IF(F94=0, 1, 0), 0):L94)))*J94 -> 0 | N94: 0 | O94: 0 | P94: 0 | Q94: 0 | R94: 0 | S94: 0 | T94: 0
E95: 88 | F95: 87 | G95: 0 | H95: 0 | I95: 0 | J95: 1 | K95: 2032-02-02 | L95: 0 | M95: =IF(OR(F95>$C$15, F95=0),0, 1*(1/(1+$C$30)^SUM(OFFSET($L$8, IF(F95=0, 1, 0), 0):L95)))*J95 -> 0 | N95: 0 | O95: 0 | P95: 0 | Q95: 0 | R95: 0 | S95: 0 | T95: 0
E96: 89 | F96: 88 | G96: 0 | H96: 0 | I96: 0 | J96: 1 | K96: 2032-03-02 | L96: 0 | M96: =IF(OR(F96>$C$15, F96=0),0, 1*(1/(1+$C$30)^SUM(OFFSET($L$8, IF(F96=0, 1, 0), 0):L96)))*J96 -> 0 | N96: 0 | O96: 0 | P96: 0 | Q96: 0 | R96: 0 | S96: 0 | T96: 0
E97: 90 | F97: 89 | G97: 0 | H97: 0 | I97: 0 | J97: 1 | K97: 2032-04-02 | L97: 0 | M97: =IF(OR(F97>$C$15, F97=0),0, 1*(1/(1+$C$30)^SUM(OFFSET($L$8, IF(F97=0, 1, 0), 0):L97)))*J97 -> 0 | N97: 0 | O97: 0 | P97: 0 | Q97: 0 | R97: 0 | S97: 0 | T97: 0
E98: 91 | F98: 90 | G98: 0 | H98: 0 | I98: 0 | J98: 1 | K98: 2032-05-02 | L98: 0 | M98: =IF(OR(F98>$C$15, F98=0),0, 1*(1/(1+$C$30)^SUM(OFFSET($L$8, IF(F98=0, 1, 0), 0):L98)))*J98 -> 0 | N98: 0 | O98: 0 | P98: 0 | Q98: 0 | R98: 0 | S98: 0 | T98: 0
E99: 92 | F99: 91 | G99: 0 | H99: 0 | I99: 0 | J99: 1 | K99: 2032-06-02 | L99: 0 | M99: =IF(OR(F99>$C$15, F99=0),0, 1*(1/(1+$C$30)^SUM(OFFSET($L$8, IF(F99=0, 1, 0), 0):L99)))*J99 -> 0 | N99: 0 | O99: 0 | P99: 0 | Q99: 0 | R99: 0 | S99: 0 | T99: 0
E100: 93 | F100: 92 | G100: 0 | H100: 0 | I100: 0 | J100: 1 | K100: 2032-07-02 | L100: 0 | M100: =IF(OR(F100>$C$15, F100=0),0, 1*(1/(1+$C$30)^SUM(OFFSET($L$8, IF(F100=0, 1, 0), 0):L100)))*J100 -> 0 | N100: 0 | O100: 0 | P100: 0 | Q100: 0 | R100: 0 | S100: 0 | T100: 0
E101: 94 | F101: 93 | G101: 0 | H101: 0 | I101: 0 | J101: 1 | K101: 2032-08-02 | L101: 0 | M101: =IF(OR(F101>$C$15, F101=0),0, 1*(1/(1+$C$30)^SUM(OFFSET($L$8, IF(F101=0, 1, 0), 0):L101)))*J101 -> 0 | N101: 0 | O101: 0 | P101: 0 | Q101: 0 | R101: 0 | S101: 0 | T101: 0
E102: 95 | F102: 94 | G102: 0 | H102: 0 | I102: 0 | J102: 1 | K102: 2032-09-02 | L102: 0 | M102: =IF(OR(F102>$C$15, F102=0),0, 1*(1/(1+$C$30)^SUM(OFFSET($L$8, IF(F102=0, 1, 0), 0):L102)))*J102 -> 0 | N102: 0 | O102: 0 | P102: 0 | Q102: 0 | R102: 0 | S102: 0 | T102: 0
E103: 96 | F103: 95 | G103: 0 | H103: 0 | I103: 0 | J103: 1 | K103: 2032-10-02 | L103: 0 | M103: =IF(OR(F103>$C$15, F103=0),0, 1*(1/(1+$C$30)^SUM(OFFSET($L$8, IF(F103=0, 1, 0), 0):L103)))*J103 -> 0 | N103: 0 | O103: 0 | P103: 0 | Q103: 0 | R103: 0 | S103: 0 | T103: 0
E104: 97 | F104: 96 | G104: 0 | H104: 0 | I104: 0 | J104: 1 | K104: 2032-11-02 | L104: 0 | M104: =IF(OR(F104>$C$15, F104=0),0, 1*(1/(1+$C$30)^SUM(OFFSET($L$8, IF(F104=0, 1, 0), 0):L104)))*J104 -> 0 | N104: 0 | O104: 0 | P104: 0 | Q104: 0 | R104: 0 | S104: 0 | T104: 0
E105: 98 | F105: 97 | G105: 0 | H105: 0 | I105: 0 | J105: 1 | K105: 2032-12-02 | L105: 0 | M105: =IF(OR(F105>$C$15, F105=0),0, 1*(1/(1+$C$30)^SUM(OFFSET($L$8, IF(F105=0, 1, 0), 0):L105)))*J105 -> 0 | N105: 0 | O105: 0 | P105: 0 | Q105: 0 | R105: 0 | S105: 0 | T105: 0
E106: 99 | F106: 98 | G106: 0 | H106: 0 | I106: 0 | J106: 1 | K106: 2033-01-02 | L106: 0 | M106: =IF(OR(F106>$C$15, F106=0),0, 1*(1/(1+$C$30)^SUM(OFFSET($L$8, IF(F106=0, 1, 0), 0):L106)))*J106 -> 0 | N106: 0 | O106: 0 | P106: 0 | Q106: 0 | R106: 0 | S106: 0 | T106: 0
E107: 100 | F107: 99 | G107: 0 | H107: 0 | I107: 0 | J107: 1 | K107: 2033-02-02 | L107: 0 | M107: =IF(OR(F107>$C$15, F107=0),0, 1*(1/(1+$C$30)^SUM(OFFSET($L$8, IF(F107=0, 1, 0), 0):L107)))*J107 -> 0 | N107: 0 | O107: 0 | P107: 0 | Q107: 0 | R107: 0 | S107: 0 | T107: 0
E108: 101 | F108: 100 | G108: 0 | H108: 0 | I108: 0 | J108: 1 | K108: 2033-03-02 | L108: 0 | M108: =IF(OR(F108>$C$15, F108=0),0, 1*(1/(1+$C$30)^SUM(OFFSET($L$8, IF(F108=0, 1, 0), 0):L108)))*J108 -> 0 | N108: 0 | O108: 0 | P108: 0 | Q108: 0 | R108: 0 | S108: 0 | T108: 0
E109: 102 | F109: 101 | G109: 0 | H109: 0 | I109: 0 | J109: 1 | K109: 2033-04-02 | L109: 0 | M109: =IF(OR(F109>$C$15, F109=0),0, 1*(1/(1+$C$30)^SUM(OFFSET($L$8, IF(F109=0, 1, 0), 0):L109)))*J109 -> 0 | N109: 0 | O109: 0 | P109: 0 | Q109: 0 | R109: 0 | S109: 0 | T109: 0
E110: 103 | F110: 102 | G110: 0 | H110: 0 | I110: 0 | J110: 1 | K110: 2033-05-02 | L110: 0 | M110: =IF(OR(F110>$C$15, F110=0),0, 1*(1/(1+$C$30)^SUM(OFFSET($L$8, IF(F110=0, 1, 0), 0):L110)))*J110 -> 0 | N110: 0 | O110: 0 | P110: 0 | Q110: 0 | R110: 0 | S110: 0 | T110: 0
E111: 104 | F111: 103 | G111: 0 | H111: 0 | I111: 0 | J111: 1 | K111: 2033-06-02 | L111: 0 | M111: =IF(OR(F111>$C$15, F111=0),0, 1*(1/(1+$C$30)^SUM(OFFSET($L$8, IF(F111=0, 1, 0), 0):L111)))*J111 -> 0 | N111: 0 | O111: 0 | P111: 0 | Q111: 0 | R111: 0 | S111: 0 | T111: 0
E112: 105 | F112: 104 | G112: 0 | H112: 0 | I112: 0 | J112: 1 | K112: 2033-07-02 | L112: 0 | M112: =IF(OR(F112>$C$15, F112=0),0, 1*(1/(1+$C$30)^SUM(OFFSET($L$8, IF(F112=0, 1, 0), 0):L112)))*J112 -> 0 | N112: 0 | O112: 0 | P112: 0 | Q112: 0 | R112: 0 | S112: 0 | T112: 0
E113: 106 | F113: 105 | G113: 0 | H113: 0 | I113: 0 | J113: 1 | K113: 2033-08-02 | L113: 0 | M113: =IF(OR(F113>$C$15, F113=0),0, 1*(1/(1+$C$30)^SUM(OFFSET($L$8, IF(F113=0, 1, 0), 0):L113)))*J113 -> 0 | N113: 0 | O113: 0 | P113: 0 | Q113: 0 | R113: 0 | S113: 0 | T113: 0
E114: 107 | F114: 106 | G114: 0 | H114: 0 | I114: 0 | J114: 1 | K114: 2033-09-02 | L114: 0 | M114: =IF(OR(F114>$C$15, F114=0),0, 1*(1/(1+$C$30)^SUM(OFFSET($L$8, IF(F114=0, 1, 0), 0):L114)))*J114 -> 0 | N114: 0 | O114: 0 | P114: 0 | Q114: 0 | R114: 0 | S114: 0 | T114: 0
E115: 108 | F115: 107 | G115: 0 | H115: 0 | I115: 0 | J115: 1 | K115: 2033-10-02 | L115: 0 | M115: =IF(OR(F115>$C$15, F115=0),0, 1*(1/(1+$C$30)^SUM(OFFSET($L$8, IF(F115=0, 1, 0), 0):L115)))*J115 -> 0 | N115: 0 | O115: 0 | P115: 0 | Q115: 0 | R115: 0 | S115: 0 | T115: 0
E116: 109 | F116: 108 | G116: 0 | H116: 0 | I116: 0 | J116: 1 | K116: 2033-11-02 | L116: 0 | M116: =IF(OR(F116>$C$15, F116=0),0, 1*(1/(1+$C$30)^SUM(OFFSET($L$8, IF(F116=0, 1, 0), 0):L116)))*J116 -> 0 | N116: 0 | O116: 0 | P116: 0 | Q116: 0 | R116: 0 | S116: 0 | T116: 0
E117: 110 | F117: 109 | G117: 0 | H117: 0 | I117: 0 | J117: 1 | K117: 2033-12-02 | L117: 0 | M117: =IF(OR(F117>$C$15, F117=0),0, 1*(1/(1+$C$30)^SUM(OFFSET($L$8, IF(F117=0, 1, 0), 0):L117)))*J117 -> 0 | N117: 0 | O117: 0 | P117: 0 | Q117: 0 | R117: 0 | S117: 0 | T117: 0
E118: 111 | F118: 110 | G118: 0 | H118: 0 | I118: 0 | J118: 1 | K118: 2034-01-02 | L118: 0 | M118: =IF(OR(F118>$C$15, F118=0),0, 1*(1/(1+$C$30)^SUM(OFFSET($L$8, IF(F118=0, 1, 0), 0):L118)))*J118 -> 0 | N118: 0 | O118: 0 | P118: 0 | Q118: 0 | R118: 0 | S118: 0 | T118: 0
E119: 112 | F119: 111 | G119: 0 | H119: 0 | I119: 0 | J119: 1 | K119: 2034-02-02 | L119: 0 | M119: =IF(OR(F119>$C$15, F119=0),0, 1*(1/(1+$C$30)^SUM(OFFSET($L$8, IF(F119=0, 1, 0), 0):L119)))*J119 -> 0 | N119: 0 | O119: 0 | P119: 0 | Q119: 0 | R119: 0 | S119: 0 | T119: 0
E120: 113 | F120: 112 | G120: 0 | H120: 0 | I120: 0 | J120: 1 | K120: 2034-03-02 | L120: 0 | M120: =IF(OR(F120>$C$15, F120=0),0, 1*(1/(1+$C$30)^SUM(OFFSET($L$8, IF(F120=0, 1, 0), 0):L120)))*J120 -> 0 | N120: 0 | O120: 0 | P120: 0 | Q120: 0 | R120: 0 | S120: 0 | T120: 0
E121: 114 | F121: 113 | G121: 0 | H121: 0 | I121: 0 | J121: 1 | K121: 2034-04-02 | L121: 0 | M121: =IF(OR(F121>$C$15, F121=0),0, 1*(1/(1+$C$30)^SUM(OFFSET($L$8, IF(F121=0, 1, 0), 0):L121)))*J121 -> 0 | N121: 0 | O121: 0 | P121: 0 | Q121: 0 | R121: 0 | S121: 0 | T121: 0
E122: 115 | F122: 114 | G122: 0 | H122: 0 | I122: 0 | J122: 1 | K122: 2034-05-02 | L122: 0 | M122: =IF(OR(F122>$C$15, F122=0),0, 1*(1/(1+$C$30)^SUM(OFFSET($L$8, IF(F122=0, 1, 0), 0):L122)))*J122 -> 0 | N122: 0 | O122: 0 | P122: 0 | Q122: 0 | R122: 0 | S122: 0 | T122: 0
E123: 116 | F123: 115 | G123: 0 | H123: 0 | I123: 0 | J123: 1 | K123: 2034-06-02 | L123: 0 | M123: =IF(OR(F123>$C$15, F123=0),0, 1*(1/(1+$C$30)^SUM(OFFSET($L$8, IF(F123=0, 1, 0), 0):L123)))*J123 -> 0 | N123: 0 | O123: 0 | P123: 0 | Q123: 0 | R123: 0 | S123: 0 | T123: 0
E124: 117 | F124: 116 | G124: 0 | H124: 0 | I124: 0 | J124: 1 | K124: 2034-07-02 | L124: 0 | M124: =IF(OR(F124>$C$15, F124=0),0, 1*(1/(1+$C$30)^SUM(OFFSET($L$8, IF(F124=0, 1, 0), 0):L124)))*J124 -> 0 | N124: 0 | O124: 0 | P124: 0 | Q124: 0 | R124: 0 | S124: 0 | T124: 0
E125: 118 | F125: 117 | G125: 0 | H125: 0 | I125: 0 | J125: 1 | K125: 2034-08-02 | L125: 0 | M125: =IF(OR(F125>$C$15, F125=0),0, 1*(1/(1+$C$30)^SUM(OFFSET($L$8, IF(F125=0, 1, 0), 0):L125)))*J125 -> 0 | N125: 0 | O125: 0 | P125: 0 | Q125: 0 | R125: 0 | S125: 0 | T125: 0
E126: 119 | F126: 118 | G126: 0 | H126: 0 | I126: 0 | J126: 1 | K126: 2034-09-02 | L126: 0 | M126: =IF(OR(F126>$C$15, F126=0),0, 1*(1/(1+$C$30)^SUM(OFFSET($L$8, IF(F126=0, 1, 0), 0):L126)))*J126 -> 0 | N126: 0 | O126: 0 | P126: 0 | Q126: 0 | R126: 0 | S126: 0 | T126: 0
E127: 120 | F127: 119 | G127: 0 | H127: 0 | I127: 0 | J127: 1 | K127: 2034-10-02 | L127: 0 | M127: =IF(OR(F127>$C$15, F127=0),0, 1*(1/(1+$C$30)^SUM(OFFSET($L$8, IF(F127=0, 1, 0), 0):L127)))*J127 -> 0 | N127: 0 | O127: 0 | P127: 0 | Q127: 0 | R127: 0 | S127: 0 | T127: 0
E128: 121 | F128: 120 | G128: 0 | H128: 0 | I128: 0 | J128: 1 | K128: 2034-11-02 | L128: 0 | M128: =IF(OR(F128>$C$15, F128=0),0, 1*(1/(1+$C$30)^SUM(OFFSET($L$8, IF(F128=0, 1, 0), 0):L128)))*J128 -> 0 | N128: 0 | O128: 0 | P128: 0 | Q128: 0 | R128: 0 | S128: 0 | T128: 0
K134: RESUMEN EXTRACASH
K135: MONTO DE CREDITO | R135: =C8 -> 12799
K136: EFECTIVA ANUAL FIJA | R136: =C11 -> 0.365
K137: TASA DE COSTO EFECTIVO ANUAL
K138: NRO CUOTAS MENSUALES | R138: =C15 -> 60
K139: MONEDA | R139: SOLES
K140: FECHA DE PAGO PRIMERA CUOTA | R140: =C19 -> 2024-12-02

Sheet Hoja1 (hidden)

Sheet LEYENDA (hidden)
B4: SIN DEVOLUC. | C4: SIN DEVOLUC. | D4: SIN SEGURO (ENDOSO) | G4: TARIFA DE PROTECCIÓN FINANCIERA Soles | H4: Soles | J4: Dolares
B5: SIN SEGURO (ENDOSO) | C5: CON DEVOLUC. | G5: 1 | H5: 73 | J5: 34
C6: SIN SEGURO (ENDOSO) | G6: 2 | H6: 73 | J6: 34 | P6: =+Q6&R6 -> SOLESFÍSICO - CON PLANILLA | Q6: SOLES | R6: FÍSICO - CON PLANILLA | S6: 4
G7: 3 | H7: 73 | J7: 34 | P7: =+Q7&R7 -> SOLESFÍSICO - SIN PLANILLA | Q7: SOLES | R7: FÍSICO - SIN PLANILLA | S7: 10
G8: 4 | H8: 73 | J8: 34 | P8: SOLESVIRTUAL | Q8: SOLES | R8: VIRTUAL | S8: 0
C9: SÍ | G9: 5 | H9: 73 | J9: 34 | P9: DÓLARESFÍSICO - CON PLANILLA | Q9: DÓLARES | R9: FÍSICO - CON PLANILLA | S9: 1.5
C10: NO | G10: 6 | H10: 73 | J10: 34 | P10: DÓLARESFÍSICO - SIN PLANILLA | Q10: DÓLARES | R10: FÍSICO - SIN PLANILLA | S10: 3.5
G11: 7 | H11: 110 | J11: 51 | P11: DÓLARESVIRTUAL | Q11: DÓLARES | R11: VIRTUAL | S11: 0
G12: 8 | H12: 110 | J12: 51
G13: 9 | H13: 110 | J13: 51
C14: FÍSICO - CON PLANILLA | G14: 10 | H14: 145 | I14: 145 | J14: 68
C15: FÍSICO - SIN PLANILLA | G15: 11 | H15: 145 | I15: 185 | J15: 68
C16: VIRTUAL | G16: 12 | H16: 145 | I16: 252 | J16: 68
G17: 13 | H17: 185 | I17: 369 | J17: 88
G18: 14 | H18: 185 | I18: 454 | J18: 88
C19: 0 | G19: 15 | H19: 185 | I19: 577 | J19: 88
C20: 1 | G20: 16 | H20: 185 | J20: 88
C21: 2 | G21: 17 | H21: 185 | J21: 88
G22: 18 | H22: 185 | J22: 88
C23: 2 | G23: 19 | H23: 252 | J23: 120
C24: 17 | G24: 20 | H24: 252 | J24: 120
G25: 21 | H25: 252 | J25: 120
G26: 22 | H26: 252 | J26: 120 | Q26: 577
C27: SOLES | G27: 23 | H27: 252 | J27: 120 | Q27: 236 | R27: =+Q26/Q27 -> 2.444915254
C28: DÓLARES | G28: 24 | H28: 252 | J28: 120 | Q28: =+Q26/3.75 -> 153.8666667
G29: 25 | H29: 369 | J29: 186
G30: 26 | H30: 369 | J30: 186
G31: 27 | H31: 369 | J31: 186
C32: ORDINARIA | G32: 28 | H32: 369 | J32: 186
C33: EXTRAORDINARIA | G33: 29 | H33: 369 | J33: 186
G34: 30 | H34: 369 | J34: 186
G35: 31 | H35: 369 | J35: 186
G36: 32 | H36: 369 | J36: 186
G37: 33 | H37: 369 | J37: 186
G38: 34 | H38: 369 | J38: 186
G39: 35 | H39: 369 | J39: 186
G40: 36 | H40: 369 | J40: 186
G41: 37 | H41: 454 | J41: 186
G42: 38 | H42: 454 | J42: 186
G43: 39 | H43: 454 | J43: 186
G44: 40 | H44: 454 | J44: 186
G45: 41 | H45: 454 | J45: 186
G46: 42 | H46: 454 | J46: 186
G47: 43 | H47: 454 | J47: 186
G48: 44 | H48: 454 | J48: 186
G49: 45 | H49: 454 | J49: 186
G50: 46 | H50: 454 | J50: 186
B51: =+IF('Simulador DATOS'!$C$42>300000,LEYENDA!$D$4,IF(SIMULADOR_!$G$15>23,LEYENDA!$C$4:$C$6,LEYENDA!$B$4:$B$5)) -> SIN DEVOLUC. | G51: 47 | H51: 454 | J51: 186
B52: CON DEVOLUC. | G52: 48 | H52: 454 | J52: 186
B53: SIN SEGURO (ENDOSO) | G53: 49 | H53: 577 | J53: 236
G54: 50 | H54: 577 | J54: 236
G55: 51 | H55: 577 | J55: 236
G56: 52 | H56: 577 | J56: 236
G57: 53 | H57: 577 | J57: 236
G58: 54 | H58: 577 | J58: 236
G59: 55 | H59: 577 | J59: 236
G60: 56 | H60: 577 | J60: 236
G61: 57 | H61: 577 | J61: 236
G62: 58 | H62: 577 | J62: 236
G63: 59 | H63: 577 | J63: 236
G64: 60 | H64: 577 | J64: 236
G65: 61 | H65: 577 | J65: 236
G66: 62 | H66: 577 | J66: 236
